Workbook

Sheet Inhalt und Impressum
B2: KPI4DCE und GCC Berechnungstool
B3: Version: v2.5 | C3: 2021-03-23
B5: Inhalt:
B6: Allgemeine Angaben
B7: Ergebnisse
B8: Diagramme
B9: 2a IT-Inventarliste - Server
B10: 2b IT-Inventarliste - externe Speicher-Systeme
B11: 2c IT-Inventarliste - Netzwerk-Geräte
B12: 2d IT-Inventarliste - Neuanschaffung intelligenter PDUs
B13: 2e Monitoring Energie
B14: 2f Monitoring IT-Last
B15: 2g_Kälteanlagen
B16: 2h_VirtuelleServer
B17: 2i_Services
B18: Übersicht Datenbedarf
B20: Entwickelt im Rahmen der Forschungsprojekte
B21: Green Cloud Computing (2021): Gröger, Jens; Liu, Ran; Stobbe, Lutz; Druschke, Jan; Richter: Lebenszyklusbasierte Datenerhebung zu Umweltwirkungen des Cloud-Computing; Öko-Institut e.V., Berlin in Zusammenarbeit mit Fraunhofer-Institut für Zuverlässigkeit und Mikrointegration (IZM), Berlin. Im Auftrag des Umweltbundesamts (Forschungskannzahl 3717 34 348 0)
B22: KPI4DCE (2018): Schödwell, Björn; Zarnekow, Rüdiger; Liu, Ran; Gröger, Jens; Wilkens, Marc: Kennzahlen und Indikatoren für die Beurteilung der Ressourceneffizienz von Rechenzentren und Prüfung der praktischen Anwendbarkeit. Hg. v. Umweltbundesamt (Forschungskennzahl 3715 31 601 0)
B23: https://www.umweltbundesamt.de/publikationen/kennzahlen-indikatoren-fuer-die-beurteilung-der
B25: Autor/innen des Berechnungstools
B26: Jens Gröger, Ran Liu
B27: Öko-Institut e.V., Berlin
B28: Borkumstraße 2, 13189 Berlin
B29: j.groeger(a)oeko.de
B30: www.oeko.de
B32: Versionsgeschichte und Änderungen
B33: Version 2.2:
B34: Bezeichnungen im Nutzen-Diagramm
B35: Allokation des Wasserverbrauchs nur noch auf Server, Storage und Netzwerk. Nicht: Infrastruktur
B36: Erklärtexten bei Diagrammen
B37: Korrekturen bei BZ<1a
B38: Energiemonitoring: JAZ und PUE automatisch berechnen, nicht importieren
B41: Version 2.3:
B42: Tabellenblatt 2i_Services
B43: Ergebnisse: Aufwandskennzahlen
B44: ADP, KEA, GWP für Brennstoffe
B45: Mittelwertbildung im Mengengerüst Rechenzentrum korrigiert
B46: Ergebnisübersicht Gebäudetechnik
B48: Version 2.3:
B49: Aktualisierte ADP-Faktoren und Einheiten
B50: Text-Umwandlung nach Import standardmäßig
B51: Berichtszeitraum mit im/exportieren
B52: Bessere Default-Werte P_el Server, Storage, Netzwerk
B53: Neue Berechnungsvorschrift Blade-Server und Storage
B54: Textliche Änderungen Diagramme
B56: Version 2.4
B57: Bezeichnung der KPIs bei Diagrammen
B59: Version 2.5
B60: Zahlenformatierungen korrigiert
B61: Allokation Services auf Hardware, Aufwand (bezogen auf Berichtszeitraum) korrigiert

Sheet Allgemeine Angaben
B3: Allgemeine Angaben
B5: Rechenzentrum
B6: Bezeichung: | C6: Testrechenzentrum
B7: Adresse: | C7: Weidenweg 25, 76090 Herbolzheim
B8: Sonstiges:
B10: Betreiber Rechenzentrum
B11: Bezeichnung:
B12: Adresse:
B13: Website:
B14: Sonstiges:
B16: Datenbereitstellung durch
B17: Name:
B18: Mail:
B19: Datum der Datenbereitstellung: | C19: 31.01.2019
B20: Sonstiges:
B22: Berichtszeitraum (siehe Ergebnisse)
B23: Bilanzdatum von: | C23: =Report_start -> 2018-01-01
B24: Bilanzdatum bis: | C24: =Report_end -> 2018-12-31

Sheet Ergebnisse
B2: Berechnung Herstellungsaufwand, Aufwand Nutzungsphase, Nutzen des RZ (Performance) und Effizienzkennzahlen für Rechenzentren (KPI4DCE)
B4: Auswahl des Berichtszeitraums
D5: Bitte eingeben! | J5: Abkürzung | K5: Erläuterung und Diagrammbeschriftung
B6: Start des Berichtszeitraums | D6: 2018-01-01 | J6: ADP | K6: Abiotischer Rohstoffverbrauch (ADP)
B7: Ende des Berichtszeitraums | D7: 2018-12-31 | J7: GWP | K7: Treibhauseffekt (GWP: Global Warming Potential)
B8: (inklusive dieser Tag) | J8: KEA | K8: Kumulierter Energieaufwand (KEA)
J9: Wasser | K9: Wasserverbrauch
B11: Herstellungsaufwand
B13: Hardware | C13: Herstellungsphase (gesamt) | G13: Herstellungsphase (bezogen auf Berichtszeitraum) | K13: Herstellungsphase bez. auf 1 Jahr
C14: ADP | D14: GWP | E14: KEA | F14: Wasser | G14: ADP | H14: GWP | I14: KEA | J14: Wasser | K14: ADP | L14: GWP | M14: KEA | N14: Wasser
C15: kg Sb eq. | D15: kg CO2 eq. | E15: MJ | F15: m² | G15: kg Sb eq./BZ | H15: kg CO2 eq./BZ | I15: MJ/BZ | J15: m³/BZ | K15: kg Sb eq./a | L15: kg CO2 eq./a | M15: MJ/a | N15: m³
B16: Server | C16: =Production("Server","ADP",,TRUE) -> 15.20849681 | D16: =Production("Server","GWP",,TRUE) -> 98117.78494 | E16: =Production("Server","KEA",,TRUE) -> 1282921.843 | F16: 0 | G16: =Production("Server","ADP",,,Report_start,Report_end) -> 3.799521791 | H16: =Production("Server","GWP",,,Report_start,Report_end) -> 24512.65674 | I16: =Production("Server","KEA",,,Report_start,Report_end) -> 320510.9328 | J16: 0 | K16: =Production("Server","ADP") -> 3.802124203 | L16: =Production("Server","GWP") -> 24529.44624 | M16: =Production("Server","KEA") -> 320730.4609 | N16: 0
B17: Speichersysteme | C17: =Production("Storage","ADP",,TRUE) -> 8.937071988 | D17: =Production("Storage","GWP",,TRUE) -> 36508.37549 | E17: =Production("Storage","KEA",,TRUE) -> 436261.4245 | F17: 0 | G17: =Production("Storage","ADP",,,Report_start,Report_end) -> 1.488492483 | H17: =Production("Storage","GWP",,,Report_start,Report_end) -> 6080.564478 | I17: =Production("Storage","KEA",,,Report_start,Report_end) -> 72660.46997 | J17: 0 | K17: =Production("Storage","ADP") -> 1.489511998 | L17: =Production("Storage","GWP") -> 6084.729248 | M17: =Production("Storage","KEA") -> 72710.23741 | N17: 0
B18: Netzwerk | C18: =Production("Network","ADP",,TRUE) -> 1.0702 | D18: =Production("Network","GWP",,TRUE) -> 4917.742 | E18: =Production("Network","KEA",,TRUE) -> 66560.7586 | F18: 0 | G18: =Production("Network","ADP",,,Report_start,Report_end) -> 0.1527810697 | H18: =Production("Network","GWP",,,Report_start,Report_end) -> 702.0537127 | I18: =Production("Network","KEA",,,Report_start,Report_end) -> 9502.171463 | J18: 0 | K18: =Production("Network","ADP") -> 0.1528857143 | L18: =Production("Network","GWP") -> 702.5345714 | M18: =Production("Network","KEA") -> 9508.6798 | N18: 0
B19: Summe | C19: =SUM(C16:C18) -> 25.2157688 | D19: =SUM(D16:D18) -> 139543.9024 | E19: 1785744.026 | F19: =SUM(F16:F18) -> 0 | G19: =SUM(G16:G18) -> 5.440795343 | H19: =SUM(H16:H18) -> 31295.27493 | I19: =SUM(I16:I18) -> 402673.5742 | J19: =SUM(J16:J18) -> 0 | K19: =SUM(K16:K18) -> 5.444521915 | L19: =SUM(L16:L18) -> 31316.71005 | M19: =SUM(M16:M18) -> 402949.3781 | N19: =SUM(N16:N18) -> 0
B23: Aufwand Nutzungsphase
B25: Medium | C25: Nutzungsphase (gesamte Nutzungsdauer) | G25: Nutzungsphase (nur Berichtszeitraum) | K25: Nutzungsphase bez. auf 1 Jahr
C26: ADP | D26: GWP | E26: KEA | F26: Wasser | G26: ADP | H26: GWP | I26: KEA | J26: Wasser | K26: ADP | L26: GWP | M26: KEA | N26: Wasser
C27: kg Sb eq./ND | D27: kg CO2 eq./ND | E27: MJ/ND | F27: m³/ND | G27: kg Sb eq./BZ | H27: kg CO2 eq./BZ | I27: MJ | J27: m³ | K27: kg Sb eq. | L27: kg CO2 eq. | M27: MJ | N27: m³
B28: Strom | C28: =Usephase($B28,C$26,,TRUE) -> 0.1800414022 | D28: =Usephase($B28,D$26,,TRUE) -> 330696.1512 | E28: =Usephase($B28,E$26,,TRUE) -> 5554193.004 | F28: =Usephase($B28,F$26,,TRUE) -> - | G28: =Usephase($B28,G$26,,,Report_start,Report_end) -> 0.1800414022 | H28: 330696.1512 | I28: 5554193.004 | J28: - | K28: =Usephase($B28,K$26) -> 0.1801647182 | L28: =Usephase($B28,L$26) -> 330922.6554 | M28: 5557997.246 | N28: -
B29: Brennstoff | C29: =Usephase($B29,C$26,,TRUE) -> 0 | D29: =Usephase($B29,D$26,,TRUE) -> 0 | E29: =Usephase($B29,E$26,,TRUE) -> 0 | F29: - | G29: 0 | H29: 0 | I29: 0 | J29: - | K29: =Usephase($B29,K$26) -> 0 | L29: 0 | M29: 0 | N29: -
B30: Wasser für Kühlung | C30: =Usephase("Wasser",C$26,,TRUE) -> - | D30: =Usephase("Wasser",D$26,,TRUE) -> - | E30: - | F30: =Usephase("Wasser",F$26,,TRUE) -> 14.19301848 | G30: =Usephase("Wasser",G$26,,,Report_start,Report_end) -> - | H30: =Usephase("Wasser",H$26,,,Report_start,Report_end) -> - | I30: =Usephase("Wasser",I$26,,,Report_start,Report_end) -> - | J30: =Usephase("Wasser",J$26,,,Report_start,Report_end) -> 3.997262149 | K30: =Usephase("Wasser",K$26) -> - | L30: - | M30: - | N30: =Usephase("Wasser",N$26) -> 4
B31: Kältemittel | C31: =Usephase("Kältemittel",C26,,TRUE) -> 0.001234732997 | D31: =Usephase("Kältemittel",D26,,TRUE) -> 20518.29655 | E31: =Usephase("Kältemittel",E26,,TRUE) -> 1707.585756 | F31: =Usephase("Kältemittel",F26,,TRUE) -> - | G31: =Usephase($B31,G$26,,,Report_start,Report_end) -> 0.0003477450185 | H31: =Usephase($B31,H$26,,,Report_start,Report_end) -> 5778.686915 | I31: =Usephase($B31,I$26,,,Report_start,Report_end) -> 480.9172846 | J31: =Usephase($B31,J$26,,,Report_start,Report_end) -> - | K31: =Usephase($B31,K26) -> 0.0003479832 | L31: =Usephase($B31,L26) -> 5782.64492 | M31: 481.24668 | N31: -
B32: Summe | C32: =SUM(C28:C31) -> 0.1812761352 | D32: 351214.4478 | E32: 5555900.59 | F32: 14.19301848 | G32: 0.1803891472 | H32: 336474.8381 | I32: 5554673.921 | J32: 3.997262149 | K32: 0.1805127014 | L32: 336705.3003 | M32: 5558478.492 | N32: 4
B34: Gebäudetechnik | C34: PUE | D34: Hinweis
B35: Monitoringzeitraum | C35: =SUM(EnergieMonitoring[StrombedarfRZgesamt])/SUM(EnergieMonitoring[StrombedarfServer],EnergieMonitoring[StrombedarfStorage],EnergieMonitoring[StrombedarfNetzwerk]) -> 1.298025135 | D35: gesamter im Monitoring erfasster Zeitraum
B36: Berichtszeitraum | C36: =SUM(EnergieMonitoring[StrombedarfRZgesamt]*EnergieMonitoring[RatioMZzuBZ])/SUM((EnergieMonitoring[StrombedarfServer]+EnergieMonitoring[StrombedarfStorage]+EnergieMonitoring[StrombedarfNetzwerk])*EnergieMonitoring[RatioMZzuBZ]) -> 1.298025135 | D36: nur Berichtszeitraum = korrigiert um RatioMZzuBZ
B39: Allokation Nutzungsphase auf Hardware
B41: Allokation im Berichtszeitraum
C42: Nennleistung im Berichts- zeitraum | D42: Allokation nach Nennleistung | E42: Energiebedarf pro Jahr im BZ Geräteangaben | F42: Allokation nach Energiebedarf Geräteangeben | G42: Energiebedarf im Berichts- zeitraum (Monitoring) | H42: Allokation nach Energiebedarf im Berichts- zeitraum (Monitoring) | I42: Default Nenn- leistung im Berichtszeitraum | J42: Allokation nach Defaultwerten | K42: Auswahl Allokation
C43: W | D43: - | E43: kWh/a | F43: - | G43: kWh/a | H43: - | I43: W | J43: - | K43: Monitoring | L43: Bitte im Pulldown-Menü auswählen!
B44: Server | C44: =SUM(Server[AnzahlServer]*Server[Nennleistung]*Server[KorrekturFaktorBZ]) -> 30000 | D44: =C44/C$48 -> 0.4054742666 | E44: =SUM(Server[AnzahlServer]*Server[EnergiebedarfProJahr]*Server[KorrekturFaktorBZ]) -> 192720 | F44: =E44/E$48 -> 0.3714403757 | G44: =SUM(EnergieMonitoring[StrombedarfServer]*EnergieMonitoring[RatioMZzuBZ]) -> 157680 | H44: =G44/G$48 -> 0.3029045643 | I44: =SUM(Server[AnzahlServer]*Pel_Server_Default*Server[KorrekturFaktorBZ]) -> 40000 | J44: =I44/I$48 -> 0.5010738904 | K44: =IF($K$43="Nennleistung",D44,IF($K$43="Geräteangabe",F44,IF($K$43="Monitoring",H44,J44))) -> 0.3029045643
B45: Storage | C45: =SUM(Speicher[AnzahlStorage]*Speicher[Nennleistung]*Speicher[KorrekturFaktorBZ]) -> 25000 | D45: =C45/C$48 -> 0.3378952221 | E45: =SUM(Speicher[AnzahlStorage]*Speicher[EnergiebedarfProJahr]*Speicher[KorrekturFaktorBZ]) -> 187026 | F45: =E45/E$48 -> 0.360466001 | G45: =SUM(EnergieMonitoring[StrombedarfStorage]*EnergieMonitoring[RatioMZzuBZ]) -> 190800 | H45: =G45/G$48 -> 0.3665283541 | I45: =SUM(Speicher[AnzahlStorage]*Pel_Storage_Default*Speicher[KorrekturFaktorBZ]) -> 17500 | J45: =I45/I$48 -> 0.2192198271 | K45: =IF($K$43="Nennleistung",D45,IF($K$43="Geräteangabe",F45,IF($K$43="Monitoring",H45,J45))) -> 0.3665283541
B46: Netzwerk | C46: =SUM(Netzwerk[AnzahlNetzwerk]*Netzwerk[Nennleistung]*Netzwerk[KorrekturFaktorBZ]) -> 2000 | D46: =C46/C$48 -> 0.02703161777 | E46: =SUM(Netzwerk[AnzahlNetzwerk]*Netzwerk[EnergiebedarfProJahr]*Netzwerk[KorrekturFaktorBZ]) -> 19972.8 | F46: =E46/E$48 -> 0.03849472984 | G46: =SUM(EnergieMonitoring[StrombedarfNetzwerk]*EnergieMonitoring[RatioMZzuBZ]) -> 52560 | H46: =G46/G$48 -> 0.1009681881 | I46: =SUM(Netzwerk[AnzahlNetzwerk]*Pel_Switch_Default*Netzwerk[KorrekturFaktorBZ]) -> 4000 | J46: =I46/I$48 -> 0.05010738904 | K46: 0.1009681881
B47: Infrastruktur | C47: =(PUE_BZ-1)*SUM(C44:C46) -> 16987.43268 | D47: =C47/C$48 -> 0.2295988935 | E47: =(PUE_BZ-1)*SUM(E44:E46) -> 119126.2492 | F47: =E47/E$48 -> 0.2295988935 | G47: =(PUE_BZ-1)*SUM(G44:G46) -> 119520 | H47: =G47/G$48 -> 0.2295988935 | I47: =(PUE_BZ-1)*SUM(I44:I46) -> 18328.54578 | J47: =I47/I$48 -> 0.2295988935 | K47: 0.2295988935
B48: Summe | C48: =SUM(C44:C47) -> 73987.43268 | D48: 1 | E48: 518845.0492 | F48: 1 | G48: 520560 | H48: 1 | I48: 79828.54578 | J48: 1 | K48: 1
B50: Aufwand (Herstellung + Nutzung)
B52: Hardware | C52: Aufwand (gesamt) | G52: Aufwand (bezogen auf Berichtszeitraum) | K52: Aufwand bez. auf 1 Jahr
C53: ADP | D53: GWP | E53: KEA | F53: Wasser | G53: ADP | H53: GWP | I53: KEA | J53: Wasser | K53: ADP | L53: GWP | M53: KEA | N53: Wasser
C54: kg Sb eq. | D54: kg CO2 eq. | E54: MJ | F54: m³ | G54: kg Sb eq./BZ | H54: kg CO2 eq./BZ | I54: MJ/BZ | J54: m³/BZ | K54: kg Sb eq./a | L54: kg CO2 eq./a | M54: MJ/a | N54: m³/a
B55: Server | C55: =C16+C$32*$K44 -> 15.26340618 | D55: 204502.2442 | E55: 2965829.491 | F55: =F16+F$32*$K44 -> 4.299130079 | G55: 3.854162487 | H55: 126432.421 | I55: 2003047.017 | J55: =J16+J$32*$K44 -> 1.21078895 | K55: 3.856802324 | L55: 126519.0185 | M55: 2004418.967 | N55: =N16+N$32*$K44 -> 1.211618257
B56: Speichersysteme | C56: =C17+C$32*$K45 -> 9.003514831 | D56: 165238.429 | E56: 2472656.523 | F56: =F17+F$32*$K45 -> 5.202143703 | G56: 1.55461022 | H56: 129408.1331 | I56: 2108605.96 | J56: =J17+J$32*$K45 -> 1.465109916 | K56: 1.555675021 | L56: 129496.7688 | M56: 2110050.21 | N56: =N17+N$32*$K45 -> 1.466113416
B57: Netzwerk | C57: =C18+C$32*$K46 -> 1.088503123 | D57: 40379.22843 | E57: 627529.9744 | F57: =F18+F$32*$K46 -> 1.43304336 | G57: 0.1709946351 | H57: 34675.30846 | I57: 570347.5328 | J57: =J18+J$32*$K46 -> 0.4035963166 | K57: 0.1711117547 | L57: 34699.05867 | M57: 570738.1818 | N57: =N18+N$32*$K46 -> 0.4038727524
B58: Infrastruktur | C58: =C$32*$K47 -> 0.04162080005 | D58: 80638.44859 | E58: 1275628.628 | F58: =F$32*$K47 -> 3.258701339 | G58: 0.04141714859 | H58: =H$32*$K47 -> 77254.25052 | I58: 1275346.986 | J58: =J$32*$K47 -> 0.9177669665 | K58: 0.0414455165 | L58: 77307.16439 | M58: 1276220.511 | N58: =N$32*$K47 -> 0.918395574
B59: Summe | C59: =SUM(C55:C58) -> 25.39704493 | D59: =SUM(D55:D58) -> 490758.3502 | E59: 7341644.616 | F59: =SUM(F55:F58) -> 14.19301848 | G59: 5.62118449 | H59: 367770.1131 | I59: 5957347.496 | J59: =SUM(J55:J58) -> 3.997262149 | K59: 5.625034616 | L59: 368022.0104 | M59: 5961427.871 | N59: =SUM(N55:N58) -> 4
B61: Nutzen des Rechenzentrums
B63: Hardware | C63: Performance Bezeichnung | F63: Gesamte Nutzungsdauer | H63: Im Berichtszeitraum | J63: Bezogen auf 1 Jahr
B64: Server | C64: Server: Rechenleistung | F64: =SUM(Server[AnzahlServer]*Server[ServerBenchmarkWert]*Server[MittlereCPUAuslastung]*Server[EffektiveND]*3600*24*TageProJahr) -> 952408368000 | G64: ops/ND | H64: =SUM(Server[AnzahlServer]*Server[ServerBenchmarkWert]*Server[MittlereCPUAuslastung]*Server[KorrekturFaktorBZ]*3600*24*(_xlfn.DAYS(Report_end,Report_start)+1)) -> 237939120000 | I64: ops/BZ | J64: =H64/FaktorJahre(Report_start,Report_end,TageProJahr) -> 238102092000 | K64: ops/a
B65: Speichersysteme | C65: Speicher: Belegte Speicherkapazität | F65: =SUM(Speicher[AnzahlStorage]*Speicher[SpeicherkapazitaetGByte]*Speicher[MittlereBelegungSpeicherplatz]) -> 66600 | G65: GByte/ND | H65: =SUM(Speicher[AnzahlStorage]*Speicher[SpeicherkapazitaetGByte]*Speicher[MittlereBelegungSpeicherplatz]*Speicher[KorrekturFaktorBZ]*(_xlfn.DAYS(Report_end,Report_start)+1)/TageProJahr) -> 66554.41478 | I65: GByte/BZ | J65: =H65/FaktorJahre(Report_start,Report_end,TageProJahr) -> 66600 | K65: GByte/a
B66: Netzwerk | C66: Netzwerk: Externer Datenverkehr | F66: =SUM(Netzwerk[AnzahlNetzwerk]*Netzwerk[MittlereGenutzteBandbreiteExternerDatenverkehr]*Netzwerk[EffektiveND]*3600*24*TageProJahr/1024) -> 10354837500 | G66: Gbit/ND | H66: =SUM(Netzwerk[AnzahlNetzwerk]*Netzwerk[MittlereGenutzteBandbreiteExternerDatenverkehr]*Netzwerk[KorrekturFaktorBZ]*3600*24*(_xlfn.DAYS(Report_end,Report_start)+1)/1000) -> 1513728000 | I66: Gbit/BZ | J66: =H66/FaktorJahre(Report_start,Report_end,TageProJahr) -> 1514764800 | K66: Gbit/a
B67: Infrastruktur | C67: Infrastruktur: Bereitstellung IT-Strom und Klimatisierung | F67: =SUM(EnergieMonitoring[StrombedarfServer]+EnergieMonitoring[StrombedarfStorage]+EnergieMonitoring[StrombedarfNetzwerk]) -> 401040 | G67: kWh/MZ | H67: =SUM((EnergieMonitoring[StrombedarfServer]+EnergieMonitoring[StrombedarfStorage]+EnergieMonitoring[StrombedarfNetzwerk])*EnergieMonitoring[RatioMZzuBZ]) -> 401040 | I67: kWh/BZ | J67: =H67/FaktorJahre(Report_start,Report_end,TageProJahr) -> 401314.6849 | K67: kWh/a
B70: KPIs | C70: = Nutzen / Aufwand
B72: Bezeichnungen | D72: ADP | F72: GWP | H72: KEA | J72: Wasser
D73: kg Sb eq. | F73: kg CO2 eq. | H73: MJ | J73: m³
B74: Server | C74: ops | D74: KPI Server ADP | F74: KPI Server GWP | H74: KPI Server CED | J74: KPI Server Water
B75: Speicher | C75: GByte | D75: KPI Storage ADP | F75: KPI Storage GWP | H75: KPI Storage CED | J75: KPI Storage Water
B76: Netzwerk | C76: Mbit/s | D76: KPI Network ADP | F76: KPI Network GWP | H76: KPI Network CED | J76: KPI Network Water
B77: Infrastruktur | D77: KPI Infra ADP | F77: KPI Infra GWP | H77: KPI Infra CED | J77: KPI Infra Water
B79: Bezogen auf Berichtszeitraum * | D79: ADP | F79: GWP | H79: KEA | J79: Wasser
D80: kg Sb eq. | F80: kg CO2 eq. | H80: MJ | J80: m³
B81: Server | C81: ops | D81: =H64/G55 -> 6.173562241e+10 | E81: =$C81&"/"&D$80 -> ops/kg Sb eq. | F81: =H64/H55 -> 1881947.037 | G81: =$C81&"/"&F$80 -> ops/kg CO2 eq. | H81: =H64/I55 -> 118788.5846 | I81: =$C81&"/"&H$80 -> ops/MJ | J81: =H64/J55 -> 1.965157677e+11 | K81: =$C81&"/"&J$80 -> ops/m³
B82: Speicher | C82: GByte | D82: =H65/G56 -> 42810.99786 | E82: =$C82&"/"&D$80 -> GByte/kg Sb eq. | F82: =H65/H56 -> 0.5142985468 | G82: =$C82&"/"&F$80 -> GByte/kg CO2 eq. | H82: =H65/I56 -> 0.03156322995 | I82: =$C82&"/"&H$80 -> GByte/MJ | J82: =H65/J56 -> 45426.22642 | K82: =$C82&"/"&J$80 -> GByte/m³
B83: Netzwerk | C83: Gbit | D83: =H66/G57 -> 8852488263 | E83: Gbit/kg Sb eq. | F83: =H66/H57 -> 43654.3485 | G83: =$C83&"/"&F$80 -> Gbit/kg CO2 eq. | H83: =H66/I57 -> 2654.044969 | I83: =$C83&"/"&H$80 -> Gbit/MJ | J83: =H66/J57 -> 3750599145 | K83: =$C83&"/"&J$80 -> Gbit/m³
B84: Infrastruktur | D84: =SUM(G55:G57)/G59 -> 0.9926319535 | E84: =$D80&"/"&D$80 -> kg Sb eq./kg Sb eq. | F84: =SUM(H55:H57)/H59 -> 0.7899387477 | G84: =$F80&"/"&F$80 -> kg CO2 eq./kg CO2 eq. | H84: =SUM(I55:I57)/I59 -> 0.78592033 | I84: =$H80&"/"&H$80 -> MJ/MJ | J84: =SUM(J55:J57)/J59 -> 0.7704011065 | K84: =$J80&"/"&J$80 -> m³/m³
B85: * KPIs "Bezogen auf Berichtszeitraum" und "Bezogen auf 1 Jahr" sind identisch, da sich "FaktorJahre" rauskürzt
B87: Services des Rechenzentrums (Green Cloud Computing)
B89: Allokation Services auf Hardware
D91: Anteil an Hardware (Allokationsfaktoren Services) | H91: Aufwand (bezogen auf Berichtszeitraum)
B92: Service | C92: Service-Bezeichnung | D92: Server | E92: Storage | F92: Netzwerk | G92: Infrastruktur | H92: ADP [kg Sb eq./a] | I92: GWP [kg CO2 eq./a] | J92: KEA [MJ/a] | K92: Wasser [m³/a]
B93: Service 1 | C93: =IF('2i_Services'!D16<>"",'2i_Services'!D16,"") -> Virtuelle Server | D93: ='2i_Services'!G16 -> 0.8 | E93: ='2i_Services'!H16 -> 0.8 | F93: ='2i_Services'!I16 -> 0.9 | G93: ='2i_Services'!J16 -> 0.8 | H93: =G$55*$D93+G$56*$E93+G$57*$F93+G$58*$G93 -> 4.514047056 | I93: 297683.6213 | J93: 4822912.75 | K93: 3.238169351
B94: Service 2 | C94: =IF('2i_Services'!D17<>"",'2i_Services'!D17,"") -> Lohnabrechnung | D94: ='2i_Services'!G17 -> 0.2 | E94: ='2i_Services'!H17 -> 0.2 | F94: ='2i_Services'!I17 -> 0.1 | G94: ='2i_Services'!J17 -> 0.2 | H94: 1.107137435 | I94: 70086.49176 | J94: 1134434.746 | K94: 0.7590927982
B95: Service 3 | C95: =IF('2i_Services'!D18<>"",'2i_Services'!D18,"") ->  | D95: ='2i_Services'!G18 -> 0 | E95: ='2i_Services'!H18 -> 0 | F95: ='2i_Services'!I18 -> 0 | G95: ='2i_Services'!J18 -> 0 | H95: 0 | I95: 0 | J95: 0 | K95: 0
B96: Service 4 | C96: =IF('2i_Services'!D19<>"",'2i_Services'!D19,"") ->  | D96: ='2i_Services'!G19 -> 0 | E96: ='2i_Services'!H19 -> 0 | F96: ='2i_Services'!I19 -> 0 | G96: ='2i_Services'!J19 -> 0 | H96: 0 | I96: 0 | J96: 0 | K96: 0
B97: Summe | D97: =SUM(D93:D96) -> 1 | E97: =SUM(E93:E96) -> 1 | F97: =SUM(F93:F96) -> 1 | G97: =SUM(G93:G96) -> 1 | H97: =SUM(H93:H96) -> 5.62118449 | I97: 367770.1131 | J97: 5957347.496 | K97: 3.997262149
B99: Services (Nutzen des Rechenzentrum)
B101: Hardware | C101: ='2i_Services'!D13 -> Service-Bezeichnung | D101: ='2i_Services'!E13 -> Anzahl Service Einheiten (SU) | E101: ='2i_Services'!F13 -> Einheit Service Einheit | F101: Anzahl Services gesamte Nutzungsdauer | H101: Anzahl Services im Berichtszeitraum
B102: Service 1 | C102: =IF('2i_Services'!D16<>"",'2i_Services'!D16,"") -> Virtuelle Server | D102: ='2i_Services'!E16 -> 1000 | E102: =IF('2i_Services'!F16<>"",'2i_Services'!F16,"1") -> Stück | F102: =D102 -> 1000 | G102: =E102&"/ND" -> Stück/ND | H102: =F102*'2i_Services'!K16 -> 1000 | I102: =E102&"/BZ" -> Stück/BZ
B103: Service 2 | C103: =IF('2i_Services'!D17<>"",'2i_Services'!D17,"") -> Lohnabrechnung | D103: ='2i_Services'!E17 -> 100000 | E103: =IF('2i_Services'!F17<>"",'2i_Services'!F17,"1") -> Konten | F103: =D103 -> 100000 | G103: =E103&"/ND" -> Konten/ND | H103: =F103*'2i_Services'!K17 -> 100000 | I103: =E103&"/BZ" -> Konten/BZ
B104: Service 3 | C104: =IF('2i_Services'!D18<>"",'2i_Services'!D18,"") ->  | D104: ='2i_Services'!E18 -> 0 | E104: =IF('2i_Services'!F18<>"",'2i_Services'!F18,"1") -> 1 | F104: 0 | G104: 1/ND | H104: =F104*'2i_Services'!K18 -> 0 | I104: 1/BZ
B105: Service 4 | C105: =IF('2i_Services'!D19<>"",'2i_Services'!D19,"") ->  | D105: ='2i_Services'!E19 -> 0 | E105: =IF('2i_Services'!F19<>"",'2i_Services'!F19,"1") -> 1 | F105: 0 | G105: 1/ND | H105: =F105*'2i_Services'!K19 -> 0 | I105: 1/BZ
B108: Green Cloud Computing (GCC) Aufwandskennzahlen | G108: = Aufwand / Nutzen
B110: Bezeichnungen | C110: GCC ADP [kg Sb eq./SU] | D110: GCC GWP [kg CO2 eq./SU] | E110: GCC KEA [MJ/SU] | F110: GCC Wasser [m³/SU]
B111: =C102 -> Virtuelle Server | C111: =IF($H102>0,H93/$H102,"") -> 0.004514047056 | D111: 297.6836213 | E111: 4822.91275 | F111: 0.003238169351
B112: =C103 -> Lohnabrechnung | C112: 1.107137435e-05 | D112: =IF($H103>0,I94/$H103,"") -> 0.7008649176 | E112: 11.34434746 | F112: 7.590927982e-06
B117: Mengengerüst Rechenzentrum
B119: Server
B120: Anzahl | D120: =SUM(Server[AnzahlServer]) -> 100 | E120: [Stck]
B121: Mittlere Nutzungsdauer | D121: =SUM(Server[AnzahlServer]*Server[EffektiveND])/SUM(Server[AnzahlServer]) -> 4 | E121: [a]
B122: Nennleistung ohne Redundanz | D122: =SUM(Server[AnzahlServer]*Server[Nennleistung]) -> 30000 | E122: [W]
B123: Server Benchmark | D123: =SUM(Server[AnzahlServer]*Server[ServerBenchmarkWert]) -> 50300 | E123: [Ops/s]
B124: Anzahl CPUs | D124: =SUM(Server[AnzahlServer]*Server[AnzahlCPU]) -> 200 | E124: [Anzahl]
B125: Anzahl Kerne | D125: =SUM(Server[AnzahlServer]*Server[AnzahlKerneProCPU]*Server[AnzahlCPU]) -> 800 | E125: [Anzahl]
B126: RAM | D126: =SUM(Server[AnzahlServer]*Server[GByteRAM]) -> 1600 | E126: [GByte]
B127: Anzahl RAM Module | D127: =SUM(Server[AnzahlServer]*Server[AnzahlRAMModule]) -> 2400 | E127: [Anzahl]
B128: Anzahl HDD | D128: =SUM(Server[AnzahlServer]*Server[AnzahlHDD]) -> 200 | E128: [Anzahl]
B129: Anzahl SSD | D129: =SUM(Server[AnzahlServer]*Server[AnzahlSSD]) -> 0 | E129: [Anzahl]
B130: Anzahl redundante Netzteile | D130: =SUM(Server[AnzahlServer]*Server[AnzahlNetzteile]) -> 200 | E130: [Anzahl]
B131: Mittlere CPU-Auslastung pro Server | D131: =SUM(Server[AnzahlServer]*Server[MittlereCPUAuslastung])/SUM(Server[AnzahlServer]) -> 0.15 | E131: [-]
B132: Mittlere Leistungsaufnahme pro Server | D132: =SUM(Server[AnzahlServer]*Server[MittlereLeistungsaufnahme])/SUM(Server[AnzahlServer]) -> 220 | E132: [W/Stck]
B133: Energiebedarf pro Jahr | D133: =SUM(Server[AnzahlServer]*Server[EnergiebedarfProJahr]) -> 192720 | E133: [kWh]
B135: Speichersysteme
B136: Anzahl | D136: =SUM(Speicher[AnzahlStorage]) -> 50 | E136: [Stck]
B137: Mittlere Nutzungsdauer | D137: =SUM(Speicher[AnzahlStorage]*Speicher[EffektiveND])/SUM(Speicher[AnzahlStorage]) -> 6 | E137: [a]
B138: Nennleistung ohne Redundanz | D138: =SUM(Speicher[AnzahlStorage]*Speicher[Nennleistung]) -> 25000 | E138: [W]
B139: Speicherkapazität | D139: =SUM(Speicher[AnzahlStorage]*Speicher[SpeicherkapazitaetGByte]) -> 222000 | E139: [GByte]
B140: Anzahl HDD | D140: =SUM(Speicher[AnzahlStorage]*Speicher[AnzahlHDD]) -> 400 | E140: [Anzahl]
B141: Anzahl SSD | D141: =SUM(Speicher[AnzahlStorage]*Speicher[AnzahlSSD]) -> 200 | E141: [Anzahl]
B142: Anzahl Netzteile | D142: =SUM(Speicher[AnzahlStorage]*Speicher[AnzahlNetzteile]) -> 100 | E142: [Anzahl]
B143: Mittlere Belegung Speicherplatz | D143: =SUM(Speicher[AnzahlStorage]*Speicher[MittlereBelegungSpeicherplatz]*Speicher[SpeicherkapazitaetGByte])/SUM(Speicher[AnzahlStorage]*Speicher[SpeicherkapazitaetGByte]) -> 0.3 | E143: [-]
B144: Mittlere Anzahl Speicherzugriffe pro Sekunde | D144: =SUM(Speicher[AnzahlStorage]*Speicher[MittlereAnzahlSpeicherzugriffeProSekundeIOPS]) -> 4000 | E144: [IO/s]
B145: Mittlere Datenmenge Lesen Schreiben pro Sekunde | D145: =SUM(Speicher[AnzahlStorage]*Speicher[MittlereDatenmengeLesenSchreibenProSekunde]) -> 150 | E145: [GByte/s]
B146: Mittlere Leistungsaufnahme pro Speicher | D146: =SUM(Speicher[AnzahlStorage]*Speicher[MittlereLeistungsaufnahme])/SUM(Speicher[AnzahlStorage]) -> 427 | E146: [W/Stck]
B147: Energiebedarf pro Jahr | D147: =SUM(Speicher[AnzahlStorage]*Speicher[EnergiebedarfProJahr]) -> 187026 | E147: [kWh]
B149: Netzwerk-Geräte
B150: Anzahl | D150: =SUM(Netzwerk[AnzahlNetzwerk]) -> 20 | E150: [Stck]
B151: Mittlere Nutzungsdauer | D151: =SUM(Netzwerk[AnzahlNetzwerk]*Netzwerk[EffektiveND])/SUM(Netzwerk[AnzahlNetzwerk]) -> 7 | E151: [a]
B152: Nennleistung ohne Redundanz | D152: =SUM(Netzwerk[AnzahlNetzwerk]*Netzwerk[Nennleistung]) -> 2000 | E152: [W]
B153: Anzahl Ports | D153: =SUM(Netzwerk[AnzahlNetzwerk]*Netzwerk[AnzahlPorts]) -> 960 | E153: [Anzahl]
B154: Maximale Bandbreite | D154: =SUM(Netzwerk[AnzahlNetzwerk]*Netzwerk[MaximaleBandbreiteProPort]*Netzwerk[AnzahlPorts]) -> 960000 | E154: [Mbit/s]
B155: Anzahl Netzteile | D155: =SUM(Netzwerk[AnzahlNetzwerk]*Netzwerk[AnzahlNetzteile]) -> 40 | E155: [Anzahl]
B156: Mittlere genutzte Bandbreite interner Datenverkehr | D156: =SUM(Netzwerk[AnzahlNetzwerk]*Netzwerk[MittlereGenutzteBandbreiteInternerDatenverkehr]) -> 0 | E156: [Mbit/s]
B157: Mittlere genutzte Bandbreite externer Datenverkehr | D157: =SUM(Netzwerk[AnzahlNetzwerk]*Netzwerk[MittlereGenutzteBandbreiteExternerDatenverkehr]) -> 48000 | E157: [Mbit/s]
B158: Mittlere Leistungsaufnahme pro Switch | D158: =SUM(Netzwerk[AnzahlNetzwerk]*Netzwerk[MittlereLeistungsaufnahme])/SUM(Netzwerk[AnzahlNetzwerk]) -> 114 | E158: [W/Stck]
B159: Energiebedarf pro Jahr | D159: =SUM(Netzwerk[AnzahlNetzwerk]*Netzwerk[EnergiebedarfProJahr]) -> 19972.8 | E159: [kWh]
B161: Gebäudetechnik
B162: Strombedarf RZ gesamt | D162: =SUM(EnergieMonitoring[StrombedarfRZgesamt]) -> 520560 | E162: [kWh]
B163: Strombedarf IT | D163: =SUM(EnergieMonitoring[StrombedarfIT]) -> 401040 | E163: [kWh]
B164: PUE | D164: =D162/D163 -> 1.298025135 | E164: [-]
B165: Mittlere elektrische Leistungsaufnahme | D165: =D162/(MAX(EnergieMonitoring[MonitoringEnde])-MIN(EnergieMonitoring[MonitoringStart]))/24 -> 64.94011976 | E165: [kWel]
B166: Strombedarf Kühlsystem | D166: =SUM(EnergieMonitoring[StrombedarfKS]) -> 119520 | E166: [kWhel]
B167: Kältearbeit Kühlsystem (thermisch) | D167: =SUM(EnergieMonitoring[KaeltearbeitKSth]) -> 401040 | E167: [kWhth]
B168: Jahresarbeitszahl Kühlsystem (JAZ) | D168: =IF(D166>0,D167/D166,"") -> 3.355421687 | E168: [-]

Sheet Diagramme
J1: ADP & GWP | R1: KEA & Wasser | AA1: Rel. Verteil. | AI1: Nutzen | AP1: KPIs tabellarisch | AX1: KPI_iADP | BF1: KPI_iGWP | BN1: KPI_iCED | BV1: KPI_iWater
C2: Ressourcenaufwand ADP und GWP | K2: Ressourcenaufwand KEA und Wasser | AB2: Nutzen des Rechenzentrums | AJ2: Tabelle der Ressourceneffizienzkennzahlen (KPI4DCE) | AQ2: Ressourceneffizienzkennzahlen (KPI4DCE) | AY2: Ressourceneffizienzkennzahlen (KPI4DCE) | BG2: Ressourceneffizienzkennzahlen (KPI4DCE) | BO2: Ressourceneffizienzkennzahlen (KPI4DCE)
C3: pro Jahr im angegebenen Berichtszeitraum | K3: pro Jahr im angegebenen Berichtszeitraum | AB3: pro Jahr im angegebenen Berichtszeitraum | AJ3: Mit Erläuterung der jeweiligen Fragestellung | AQ3: Abiotische Rohstoffeffizienz (KPI_iADP) | AY3: Treibhausgaseffizienz (KPI_iGWP) | BG3: Kumulierter Energieaufwand Effizienz (KPI_iCED) | BO3: Wasserbedarfseffizienz (KPI_iWater)
AJ6: Name | AK6: Server | AL6: Speicher | AM6: Netzwerk | AN6: Infrastruktur
AJ7: ADP | AK7: KPI InfraADP | AL7: KPI ServerADP | AM7: KPI StorageADP | AN7: KPI NetworkADP
AJ8: KEA (CED) | AK8: KPI InfraCED | AL8: KPI ServerCED | AM8: KPI StorageCED | AN8: KPI NetworkCED
AJ9: THG (GWP) | AK9: KPI InfraGWP | AL9: KPI ServerGWP | AM9: KPI StorageGWP | AN9: KPI NetworkGWP
AJ10: Wasser (WD) | AK10: KPI InfraWater | AL10: KPI ServerWater | AM10: KPI StorageWater | AN10: KPI NetworkWater
AJ13: Wert | AK13: Server | AL13: Speicher | AM13: Netzwerk | AN13: Infrastruktur
AJ14: ADP | AK14: =Ergebnisse!D81 -> 6.173562241e+10 | AL14: =Ergebnisse!D82 -> 42810.99786 | AM14: =Ergebnisse!D83 -> 8852488263 | AN14: =Ergebnisse!D84 -> 0.9926319535
AJ15: KEA (CED) | AK15: =Ergebnisse!H81 -> 118788.5846 | AL15: =Ergebnisse!H82 -> 0.03156322995 | AM15: =Ergebnisse!H83 -> 2654.044969 | AN15: =Ergebnisse!H84 -> 0.78592033
AJ16: THG (GWP) | AK16: =Ergebnisse!F81 -> 1881947.037 | AL16: =Ergebnisse!F82 -> 0.5142985468 | AM16: =Ergebnisse!F83 -> 43654.3485 | AN16: =Ergebnisse!F84 -> 0.7899387477
AJ17: Wasser (WD) | AK17: =Ergebnisse!J81 -> 1.965157677e+11 | AL17: =Ergebnisse!J82 -> 45426.22642 | AM17: =Ergebnisse!J83 -> 3750599145 | AN17: =Ergebnisse!J84 -> 0.7704011065
AJ19: DCiE (1/PUE) | AN19: =1/PUE_BZ -> 0.7704011065
AB20: =AC58&": "&AD58 -> Server: Wie viele Rechenoperationen führen alle Server pro Jahr aus? | AF20: =AC59&": "&AD59 -> Speichersysteme: Wie viel Speicherplatz wird jährlich mit Daten belegt? | AQ20: =AJ30&": "&AL30 -> KPI Server ADP: Wie viele Rechenoperationen werden pro Rohstoffeinheit erbracht? | AU20: =AJ31&": "&AL31 -> KPI Storage ADP: Wie viel Speicherplatz wird pro Rohstoffeinheit aktiv genutzt? | AY20: =AJ38&": "&AL38 -> KPI Server GWP: Wie viele Rechenoperationen werden pro CO2-Einheit erbracht? | BC20: =AJ39&": "&AL39 -> KPI Storage GWP: Wie viel Speicherplatz wird pro CO2-Einheit aktiv genutzt? | BG20: =AJ34&": "&AL34 -> KPI Server CED: Wie viele Rechenoperationen werden pro Energieeinheit erbracht? | BK20: =AJ35&": "&AL35 -> KPI Storage CED: Wie viel Speicherplatz wird pro Energieeinheit aktiv genutzt? | BO20: =AJ42&": "&AL42 -> KPI Server Water: Wie viele Rechenoperationen werden pro Wassermenge erbracht? | BS20: =AJ43&": "&AL43 -> KPI Storage Water: Wie viel Speicherplatz wird pro Wassermenge aktiv genutzt?
AJ21: Einheit | AK21: Server | AL21: Speicher | AM21: Netzwerk | AN21: Infrastruktur
AJ22: ADP | AK22: ops/kg Sb.eq. | AL22: GByte/kg Sb.eq. | AM22: Gbit/kg Sb.eq. | AN22: kg Sb.eq./kg Sb.eq.
AJ23: KEA (CED) | AK23: ops/MJ | AL23: GByte/MJ | AM23: Gbit/MJ | AN23: MJ/MJ
AJ24: THG (GWP) | AK24: ops/kg CO2.eq. | AL24: GByte/kg CO2.eq. | AM24: Gbit/kg CO2.eq. | AN24: kg CO2.eq./kg CO2.eq.
AJ25: Wasser (WD) | AK25: ops/m³ | AL25: GByte/m³ | AM25: Gbit/m³ | AN25: m³/m³
AJ28: KPI-Bezeichner | AK28: Wert mit Einheit | AL28: Fragestellung
AJ29: KPI Infra ADP | AK29: =TEXT(AN14,"0%")&" "&AN22 -> 99% kg Sb.eq./kg Sb.eq. | AL29: Welchen Wirkungsgrad hat die Infrastruktur in Bezug auf die eingesetzten Rohstoffe?
AJ30: KPI Server ADP | AK30: =TEXT(AK14,"0,00E+00")&" "&AK22 -> 6,17E+10 ops/kg Sb.eq. | AL30: Wie viele Rechenoperationen werden pro Rohstoffeinheit erbracht?
AJ31: KPI Storage ADP | AK31: =TEXT(AL14,"0,00E+00")&" "&AL22 -> 4,28E+04 GByte/kg Sb.eq. | AL31: Wie viel Speicherplatz wird pro Rohstoffeinheit aktiv genutzt?
AJ32: KPI Network ADP | AK32: =TEXT(AM14,"0,00E+00")&" "&AM22 -> 8,85E+09 Gbit/kg Sb.eq. | AL32: Wie viele Daten werden pro Rohstoffeinheit übertragen?
AJ33: KPI Infra CED | AK33: =TEXT(AN15,"0%")&" "&AN23 -> 79% MJ/MJ | AL33: Welchen Wirkungsgrad hat die Infrastruktur in Bezug auf die eingesetzte Primärenergie?
AJ34: KPI Server CED | AK34: =TEXT(AK15,"0,00E+00")&" "&AK23 -> 1,19E+05 ops/MJ | AL34: Wie viele Rechenoperationen werden pro Energieeinheit erbracht?
AJ35: KPI Storage CED | AK35: =TEXT(AL15,"0,00E+00")&" "&AL23 -> 3,16E-02 GByte/MJ | AL35: Wie viel Speicherplatz wird pro Energieeinheit aktiv genutzt?
AJ36: KPI Network CED | AK36: =TEXT(AM15,"0,00E+00")&" "&AM23 -> 2,65E+03 Gbit/MJ | AL36: Wie viele Daten werden pro Energieeinheit übertragen?
AJ37: KPI Infra GWP | AK37: =TEXT(AN16,"0%")&" "&AN24 -> 79% kg CO2.eq./kg CO2.eq. | AL37: Welchen Wirkungsgrad hat die Infrastruktur in Bezug auf die Treibhausgas-Emissionen?
AB38: =AC60&": "&AD60 -> Netzwerk: Welche Datenmenge wird jährlich über die externe Netzwerkschnittstelle übertragen? | AF38: =AC61&": "&AD61 -> Infrastruktur: Welche Strommenge stellt die Gebäudetechnik für die IT jährlich bereit? | AJ38: KPI Server GWP | AK38: =TEXT(AK16,"0,00E+00")&" "&AK24 -> 1,88E+06 ops/kg CO2.eq. | AL38: Wie viele Rechenoperationen werden pro CO2-Einheit erbracht? | AQ38: =AJ32&": "&AL32 -> KPI Network ADP: Wie viele Daten werden pro Rohstoffeinheit übertragen? | AU38: =AJ29&": "&AL29 -> KPI Infra ADP: Welchen Wirkungsgrad hat die Infrastruktur in Bezug auf die eingesetzten Rohstoffe? | AY38: =AJ40&": "&AL40 -> KPI Network GWP: Wie viele Daten werden pro CO2-Einheit übertragen? | BC38: =AJ37&": "&AL37 -> KPI Infra GWP: Welchen Wirkungsgrad hat die Infrastruktur in Bezug auf die Treibhausgas-Emissionen? | BG38: =AJ36&": "&AL36 -> KPI Network CED: Wie viele Daten werden pro Energieeinheit übertragen? | BK38: =AJ33&": "&AL33 -> KPI Infra CED: Welchen Wirkungsgrad hat die Infrastruktur in Bezug auf die eingesetzte Primärenergie? | BO38: =AJ44&": "&AL44 -> KPI Network Water: Wie viele Daten werden pro Wassermenge übertragen? | BS38: =AJ41&": "&AL41 -> KPI Infra Water: Welchen Wirkungsgrad hat die Infrastruktur in Bezug auf das eingesetzte Wasser?
AJ39: KPI Storage GWP | AK39: =TEXT(AL16,"0,00E+00")&" "&AL24 -> 5,14E-01 GByte/kg CO2.eq. | AL39: Wie viel Speicherplatz wird pro CO2-Einheit aktiv genutzt?
AJ40: KPI Network GWP | AK40: =TEXT(AM16,"0,00E+00")&" "&AM24 -> 4,37E+04 Gbit/kg CO2.eq. | AL40: Wie viele Daten werden pro CO2-Einheit übertragen?
AJ41: KPI Infra Water | AK41: =TEXT(AN17,"0%")&" "&AN25 -> 77% m³/m³ | AL41: Welchen Wirkungsgrad hat die Infrastruktur in Bezug auf das eingesetzte Wasser?
AJ42: KPI Server Water | AK42: =TEXT(AK17,"0,00E+00")&" "&AK25 -> 1,97E+11 ops/m³ | AL42: Wie viele Rechenoperationen werden pro Wassermenge erbracht?
AJ43: KPI Storage Water | AK43: =TEXT(AL17,"0,00E+00")&" "&AL25 -> 4,54E+04 GByte/m³ | AL43: Wie viel Speicherplatz wird pro Wassermenge aktiv genutzt?
AJ44: KPI Network Water | AK44: =TEXT(AM17,"0,00E+00")&" "&AM25 -> 3,75E+09 Gbit/m³ | AL44: Wie viele Daten werden pro Wassermenge übertragen?
AC45: Nutzen des Rechenzentrums | AG45: KPI-Einheit
AC46: =Ergebnisse!C64&" ["&AF46&"]" -> Server: Rechenleistung [SPEC_int/a] | AE46: =Ergebnisse!J64 -> 238102092000 | AF46: SPEC_int/a | AG46: 1 | AH46: SPEC_int/a
AC47: =Ergebnisse!C65&" ["&AF47&"]" -> Speicher: Belegte Speicherkapazität [GByte/a] | AE47: =Ergebnisse!J65 -> 66600 | AF47: GByte/a | AG47: 1000000000 | AH47: Byte/a
AC48: =Ergebnisse!C66&" ["&AF48&"]" -> Netzwerk: Externer Datenverkehr [Gbit/a] | AE48: =Ergebnisse!J66 -> 1514764800 | AF48: Gbit/a | AG48: 1000000000 | AH48: Bit/a
AC49: =Ergebnisse!C67&" ["&AF49&"]" -> Infrastruktur: Bereitstellung IT-Strom und Klimatisierung [kWh/a] | AE49: =Ergebnisse!J67 -> 401314.6849 | AF49: kWh/a | AG49: 1000 | AH49: Wh/a
AC51: Einheiten umgerechnet | AG51: Faktor
AC52: =Ergebnisse!C64 -> Server: Rechenleistung | AE52: =AE46/AG52 -> 238.102092 | AF52: [Mrd. OPS SPEC_int/a] | AG52: 1000000000
AC53: =Ergebnisse!C65 -> Speicher: Belegte Speicherkapazität | AE53: =AE47/AG53 -> 66.6 | AF53: [Terabyte/a] | AG53: 1000
AC54: =Ergebnisse!C66 -> Netzwerk: Externer Datenverkehr | AE54: =AE48/AG54 -> 1.5147648 | AF54: [Exabit/a] | AG54: 1000000000
AC55: =Ergebnisse!C67 -> Infrastruktur: Bereitstellung IT-Strom und Klimatisierung | AE55: =AE49/AG55 -> 401.3146849 | AF55: [MWh/a] | AG55: 1000
AC57: Fragestellungen
AC58: =Ergebnisse!B64 -> Server | AD58: Wie viele Rechenoperationen führen alle Server pro Jahr aus?
AC59: =Ergebnisse!B65 -> Speichersysteme | AD59: Wie viel Speicherplatz wird jährlich mit Daten belegt?
AC60: =Ergebnisse!B66 -> Netzwerk | AD60: Welche Datenmenge wird jährlich über die externe Netzwerkschnittstelle übertragen?
AC61: =Ergebnisse!B67 -> Infrastruktur | AD61: Welche Strommenge stellt die Gebäudetechnik für die IT jährlich bereit?
AC64: Name | AD64: Symbol | AE64: Decimal
AC65: yotta | AD65: Y | AE65: 1e+24
AC66: zetta | AD66: Z | AE66: 1e+21
AC67: exa | AD67: E | AE67: 1e+18
AC68: peta | AD68: P | AE68: 1000000000000000
AC69: tera | AD69: T | AE69: 1000000000000
AC70: giga | AD70: G | AE70: 1000000000
AC71: mega | AD71: M | AE71: 1000000
AC72: kilo | AD72: k | AE72: 1000
B134: Stück
B135: Jahre

Sheet 2a_Server
B2: IT-Inventarliste - Anlage 2a (Server) zur KPI4DCE-Berechnung
B3: Dokumentation gemäß Anforderungen 3.1.2.1 und 3.2.2.1 der Vergabekriterien
B5: Allgemeine Angaben | H5: Legende
B6: Rechenzentrum: | C6: =IF('Allgemeine Angaben'!C6<>"",'Allgemeine Angaben'!C6,"") -> Testrechenzentrum | H6: Obligatorische Angaben Antragstellung Blauer Engel
B7: Bilanzdatum von: | C7: =IF(Report_start<>"",Report_start,"") -> 2018-01-01 | H7: Ergänzende Angaben KPI4DCE (über das [+] ausklappbar)
B8: Bilanzdatum bis: | C8: =IF(Report_end<>"",Report_end,"") -> 2018-12-31 | H8: * Angaben für Herstellungsaufwand
H9: ** Angaben für Zuordnung (Allokation)
H10: *** Angaben für Nutzen
B11: Hinweis: Alle Angaben werden pro Gerät (Rack-Server oder einzelner Blade-Server) gemacht, auch wenn dieses Gerät mehrfach vorkommt. Ausnahme: Netzteile pro Blade-System-Gehäuse | H11: Automatisch berechnete Werte (keine Eingabe)
B12: * | D12: * | E12: * | H12: ** | J12: *** | K12: *** | M12: * | N12: * | R12: * | S12: * | T12: * | U12: * | V12: * | W12: * | X12: * | Y12: * | AA12: *** | AB12: ** | AC12: **
B13: Anzahl bauglei- cher Geräte | C13: Eindeutige ID oder Komma-separierte ID-Liste | D13: Datum der Inbetriebnahme | E13: Datum der Außerbetriebnahme | F13: Hersteller | G13: Modell | H13: Nennleistung ohne Redundanz | I13: Energieeffizienz-Standard Netzteile | J13: Bezeichnung Server Benchmark | K13: Server Benchmark | L13: Bei Inanspruchnahme der Ausnahmeregelung gem. 3.2.2.3 hier bitte Abweichung begründen | M13: Geplante Nutzungsdauer | N13: Servertyp | O13: Anteil des einzelnen Bladeservers am Blade-System (z.B. 1/16) (optional) | P13: Anschaffungskosten (optional) | Q13: Währung Anschaffungskosten (optional) | R13: Anzahl CPUs | S13: Anzahl Kerne pro CPU | T13: RAM | U13: Anzahl RAM Module | V13: Anzahl HDD | W13: Anzahl SSD | X13: Speicherkapazität pro SSD | Y13: Anzahl Netzteile pro Rackserver- oder Blade-System-Gehäuse | Z13: Gewicht [kg] (optional) | AA13: Mittlere CPU-Auslastung | AB13: Mittlere Leistungsaufnahme | AC13: Energiebedarf pro Jahr | AD13: Effektive Nutzungsdauer | AE13: Korrekturfaktor Berichtszeitraum (für Jahres- und Leistungswerte)
B14: [Stck] | C14: [Text (,Text, Text, ...)] | D14: [TT.MM.JJJJ] | E14: [TT.MM.JJJJ] | F14: [Text] | G14: [Text] | H14: [W/Stck] | I14: (80 PLUS xxx) | J14: (für neue Server: SPEC SERT 2: Eff_active) | K14: [Zahlenwert] | L14: [Text] | M14: [Jahre] | N14: [Rack | Blade] | O14: (bei Rack-Server = 0, bei Blade-Server 0 bis 100%) | P14: [Zahlenwert/Stck] | Q14: [z.B. EUR | USD] | R14: [Anzahl/Stck] | S14: [Anzahl] | T14: [GByte/RAMModul] | U14: [Anzahl/Stck] | V14: [Anzahl/Stck] | W14: [Anzahl/Stck] | X14: [GByte/Stck] | Y14: [Anzahl/Stck] | Z14: [kg/Stck] | AA14: [100%] | AB14: [W/Stck] | AC14: [kWh/Stck] | AD14: [a]
B15: AnzahlServer | C15: UniqueID | D15: DatumInbetriebnahme | E15: DatumAusserbetriebnahme | F15: Herstellername | G15: Modellname | H15: Nennleistung | I15: NetzeilEnergieStandard | J15: ServerBenchmarkBezeichnung | K15: ServerBenchmarkWert | L15: BegruendungAusnahme | M15: GeplanteNutzungsdauer | N15: ServertypRack_Blade | O15: AnteilAmBladeSystem | P15: AnschaffungskostenProStueck | Q15: WaehrungAnschaffungskosten | R15: AnzahlCPU | S15: AnzahlKerneProCPU | T15: GByteRAM | U15: AnzahlRAMModule | V15: AnzahlHDD | W15: AnzahlSSD | X15: GByteSSD | Y15: AnzahlNetzteile | Z15: Gewicht | AA15: MittlereCPUAuslastung | AB15: MittlereLeistungsaufnahme | AC15: EnergiebedarfProJahr | AD15: EffektiveND | AE15: KorrekturFaktorBZ
B16: 100 | C16: 1 | H16: 300 | J16: SPECint_rate (ops/s) | K16: 503 | M16: 4 | N16: Rack | O16: 1 | R16: 2 | S16: 4 | T16: 16 | U16: 24 | V16: 2 | W16: 0 | X16: 1000 | Y16: 2 | AA16: 0.15 | AB16: 220 | AC16: =Server[[#This Row],[MittlereLeistungsaufnahme]]*8.76 -> 1927.2 | AD16: =EffektiveND(Server[[#This Row],[DatumInbetriebnahme]],Server[[#This Row],[DatumAusserbetriebnahme]],Server[[#This Row],[GeplanteNutzungsdauer]], ND_default_server) -> 4 | AE16: =KorrFaktBZ(Server[[#This Row],[DatumInbetriebnahme]]*1,Server[[#This Row],[DatumAusserbetriebnahme]]*1,Report_start*1,Report_end*1) -> 1
AD17: =EffektiveND(Server[[#This Row],[DatumInbetriebnahme]],Server[[#This Row],[DatumAusserbetriebnahme]],Server[[#This Row],[GeplanteNutzungsdauer]], ND_default_server) -> 3 | AE17: =KorrFaktBZ(Server[[#This Row],[DatumInbetriebnahme]]*1,Server[[#This Row],[DatumAusserbetriebnahme]]*1,Report_start*1,Report_end*1) -> 1
AD18: =EffektiveND(Server[[#This Row],[DatumInbetriebnahme]],Server[[#This Row],[DatumAusserbetriebnahme]],Server[[#This Row],[GeplanteNutzungsdauer]], ND_default_server) -> 3 | AE18: =KorrFaktBZ(Server[[#This Row],[DatumInbetriebnahme]]*1,Server[[#This Row],[DatumAusserbetriebnahme]]*1,Report_start*1,Report_end*1) -> 1
AD19: =EffektiveND(Server[[#This Row],[DatumInbetriebnahme]],Server[[#This Row],[DatumAusserbetriebnahme]],Server[[#This Row],[GeplanteNutzungsdauer]], ND_default_server) -> 3 | AE19: =KorrFaktBZ(Server[[#This Row],[DatumInbetriebnahme]]*1,Server[[#This Row],[DatumAusserbetriebnahme]]*1,Report_start*1,Report_end*1) -> 1
AD20: =EffektiveND(Server[[#This Row],[DatumInbetriebnahme]],Server[[#This Row],[DatumAusserbetriebnahme]],Server[[#This Row],[GeplanteNutzungsdauer]], ND_default_server) -> 3 | AE20: =KorrFaktBZ(Server[[#This Row],[DatumInbetriebnahme]]*1,Server[[#This Row],[DatumAusserbetriebnahme]]*1,Report_start*1,Report_end*1) -> 1
AD21: =EffektiveND(Server[[#This Row],[DatumInbetriebnahme]],Server[[#This Row],[DatumAusserbetriebnahme]],Server[[#This Row],[GeplanteNutzungsdauer]], ND_default_server) -> 3 | AE21: =KorrFaktBZ(Server[[#This Row],[DatumInbetriebnahme]]*1,Server[[#This Row],[DatumAusserbetriebnahme]]*1,Report_start*1,Report_end*1) -> 1
AD22: =EffektiveND(Server[[#This Row],[DatumInbetriebnahme]],Server[[#This Row],[DatumAusserbetriebnahme]],Server[[#This Row],[GeplanteNutzungsdauer]], ND_default_server) -> 3 | AE22: =KorrFaktBZ(Server[[#This Row],[DatumInbetriebnahme]]*1,Server[[#This Row],[DatumAusserbetriebnahme]]*1,Report_start*1,Report_end*1) -> 1
AD23: =EffektiveND(Server[[#This Row],[DatumInbetriebnahme]],Server[[#This Row],[DatumAusserbetriebnahme]],Server[[#This Row],[GeplanteNutzungsdauer]], ND_default_server) -> 3 | AE23: =KorrFaktBZ(Server[[#This Row],[DatumInbetriebnahme]]*1,Server[[#This Row],[DatumAusserbetriebnahme]]*1,Report_start*1,Report_end*1) -> 1
AD24: =EffektiveND(Server[[#This Row],[DatumInbetriebnahme]],Server[[#This Row],[DatumAusserbetriebnahme]],Server[[#This Row],[GeplanteNutzungsdauer]], ND_default_server) -> 3 | AE24: =KorrFaktBZ(Server[[#This Row],[DatumInbetriebnahme]]*1,Server[[#This Row],[DatumAusserbetriebnahme]]*1,Report_start*1,Report_end*1) -> 1
AD25: =EffektiveND(Server[[#This Row],[DatumInbetriebnahme]],Server[[#This Row],[DatumAusserbetriebnahme]],Server[[#This Row],[GeplanteNutzungsdauer]], ND_default_server) -> 3 | AE25: =KorrFaktBZ(Server[[#This Row],[DatumInbetriebnahme]]*1,Server[[#This Row],[DatumAusserbetriebnahme]]*1,Report_start*1,Report_end*1) -> 1
AD26: =EffektiveND(Server[[#This Row],[DatumInbetriebnahme]],Server[[#This Row],[DatumAusserbetriebnahme]],Server[[#This Row],[GeplanteNutzungsdauer]], ND_default_server) -> 3 | AE26: =KorrFaktBZ(Server[[#This Row],[DatumInbetriebnahme]]*1,Server[[#This Row],[DatumAusserbetriebnahme]]*1,Report_start*1,Report_end*1) -> 1
AD27: =EffektiveND(Server[[#This Row],[DatumInbetriebnahme]],Server[[#This Row],[DatumAusserbetriebnahme]],Server[[#This Row],[GeplanteNutzungsdauer]], ND_default_server) -> 3 | AE27: =KorrFaktBZ(Server[[#This Row],[DatumInbetriebnahme]]*1,Server[[#This Row],[DatumAusserbetriebnahme]]*1,Report_start*1,Report_end*1) -> 1
AD28: =EffektiveND(Server[[#This Row],[DatumInbetriebnahme]],Server[[#This Row],[DatumAusserbetriebnahme]],Server[[#This Row],[GeplanteNutzungsdauer]], ND_default_server) -> 3 | AE28: =KorrFaktBZ(Server[[#This Row],[DatumInbetriebnahme]]*1,Server[[#This Row],[DatumAusserbetriebnahme]]*1,Report_start*1,Report_end*1) -> 1
AD29: =EffektiveND(Server[[#This Row],[DatumInbetriebnahme]],Server[[#This Row],[DatumAusserbetriebnahme]],Server[[#This Row],[GeplanteNutzungsdauer]], ND_default_server) -> 3 | AE29: =KorrFaktBZ(Server[[#This Row],[DatumInbetriebnahme]]*1,Server[[#This Row],[DatumAusserbetriebnahme]]*1,Report_start*1,Report_end*1) -> 1
AD30: =EffektiveND(Server[[#This Row],[DatumInbetriebnahme]],Server[[#This Row],[DatumAusserbetriebnahme]],Server[[#This Row],[GeplanteNutzungsdauer]], ND_default_server) -> 3 | AE30: =KorrFaktBZ(Server[[#This Row],[DatumInbetriebnahme]]*1,Server[[#This Row],[DatumAusserbetriebnahme]]*1,Report_start*1,Report_end*1) -> 1
AD31: =EffektiveND(Server[[#This Row],[DatumInbetriebnahme]],Server[[#This Row],[DatumAusserbetriebnahme]],Server[[#This Row],[GeplanteNutzungsdauer]], ND_default_server) -> 3 | AE31: =KorrFaktBZ(Server[[#This Row],[DatumInbetriebnahme]]*1,Server[[#This Row],[DatumAusserbetriebnahme]]*1,Report_start*1,Report_end*1) -> 1
AD32: =EffektiveND(Server[[#This Row],[DatumInbetriebnahme]],Server[[#This Row],[DatumAusserbetriebnahme]],Server[[#This Row],[GeplanteNutzungsdauer]], ND_default_server) -> 3 | AE32: =KorrFaktBZ(Server[[#This Row],[DatumInbetriebnahme]]*1,Server[[#This Row],[DatumAusserbetriebnahme]]*1,Report_start*1,Report_end*1) -> 1
AD33: =EffektiveND(Server[[#This Row],[DatumInbetriebnahme]],Server[[#This Row],[DatumAusserbetriebnahme]],Server[[#This Row],[GeplanteNutzungsdauer]], ND_default_server) -> 3 | AE33: =KorrFaktBZ(Server[[#This Row],[DatumInbetriebnahme]]*1,Server[[#This Row],[DatumAusserbetriebnahme]]*1,Report_start*1,Report_end*1) -> 1
AD34: =EffektiveND(Server[[#This Row],[DatumInbetriebnahme]],Server[[#This Row],[DatumAusserbetriebnahme]],Server[[#This Row],[GeplanteNutzungsdauer]], ND_default_server) -> 3 | AE34: =KorrFaktBZ(Server[[#This Row],[DatumInbetriebnahme]]*1,Server[[#This Row],[DatumAusserbetriebnahme]]*1,Report_start*1,Report_end*1) -> 1

Sheet 2b_Externe Speicher-Systeme
B2: IT-Inventarliste - Anlage 2b (externe Speicher-Systeme) zur KPI4DCE-Berechnung
B3: Dokumentation gemäß Anforderungen 3.1.2.1 und 3.2.2.1 der Vergabekriterien
B5: Allgemeine Angaben | H5: Legende
B6: Rechenzentrum: | C6: =IF('Allgemeine Angaben'!C6<>"",'Allgemeine Angaben'!C6,"") -> Testrechenzentrum | H6: Obligatorische Angaben Antragstellung Blauer Engel
B7: Bilanzdatum von: | C7: =IF(Report_start<>"",Report_start,"") -> 2018-01-01 | H7: Ergänzende Angaben KPI4DCE (über das [+] ausklappbar)
B8: Bilanzdatum bis: | C8: =IF(Report_end<>"",Report_end,"") -> 2018-12-31 | H8: * Angaben für Herstellungsaufwand
H9: ** Angaben für Zuordnung (Allokation)
H10: *** Angaben für Nutzen
B11: Hinweis: Alle Angaben werden pro Gerät gemacht, auch wenn dieses mehrfach vorkommt | H11: Automatisch berechnete Werte (keine Eingabe)
B12: * | D12: * | E12: * | H12: ** | I12: *** | J12: * | K12: * | L12: * | O12: * | P12: * | R12: *** | S12: (***) | T12: (***) | U12: ** | V12: **
B13: Anzahl bauglei- cher Geräte | C13: Eindeutige ID oder Komma-separierte ID-Liste | D13: Datum der Inbetriebnahme | E13: Datum der Außerbetriebnahme | F13: Hersteller | G13: Modell | H13: Nennleistung ohne Redundanz | I13: Speicherkapazität pro Gerät | J13: Anzahl HDD | K13: Anzahl SSD | L13: Geplante Nutzungsdauer | M13: Anschaffungskosten | N13: Währung Anschaffungskosten | O13: Speicherkapazität pro SSD | P13: Anzahl Netzteile | Q13: Gewicht | R13: Mittlere Belegung Speicherplatz | S13: Mittlere Anzahl Speicherzugriffe pro Sekunde | T13: Mittlere Datenmenge Lesen Schreiben pro Sekunde | U13: Mittlere Leistungsaufnahme | V13: Energiebedarf pro Jahr | W13: Effektive Nutzungsdauer | X13: Korrekturfaktor Berichtszeitraum (für Jahres- und Leistungswerte)
B14: [Stck] | C14: [Text (,Text, Text, ...)] | D14: [TT.MM.JJJJ] | E14: [TT.MM.JJJJ] | F14: [Text] | G14: [Text] | H14: [W/Stck] | I14: [GByte/Stck] | J14: [Anzahl/Stck] | K14: [Anzahl/Stck] | L14: [Jahre] | M14: [Zahlenwert] | N14: [z.B. EUR | USD] | O14: [GByte/Stck] | P14: [Anzahl/Stck] | Q14: [kg/Stck] | R14: [-] | S14: [IO/s] | T14: [GByte/s] | U14: [W/Stck] | V14: [kWh/Stck] | W14: [a]
B15: AnzahlStorage | C15: UniqueID | D15: DatumInbetriebnahme | E15: DatumAusserbetriebnahme | F15: Herstellername | G15: Modellname | H15: Nennleistung | I15: SpeicherkapazitaetGByte | J15: AnzahlHDD | K15: AnzahlSSD | L15: GeplanteNutzungsdauer | M15: AnschaffungskostenProStueck | N15: WaehrungAnschaffungskosten | O15: GByteSSD | P15: AnzahlNetzteile | Q15: Gewicht | R15: MittlereBelegungSpeicherplatz | S15: MittlereAnzahlSpeicherzugriffeProSekundeIOPS | T15: MittlereDatenmengeLesenSchreibenProSekunde | U15: MittlereLeistungsaufnahme | V15: EnergiebedarfProJahr | W15: EffektiveND | X15: KorrekturFaktorBZ
B16: 50 | C16: 1 | H16: 500 | I16: 4440 | J16: 8 | K16: 4 | L16: 6 | O16: 500 | P16: 2 | R16: 0.3 | S16: 80 | T16: 3 | U16: 427 | V16: =Speicher[[#This Row],[MittlereLeistungsaufnahme]]*8.76 -> 3740.52 | W16: =EffektiveND(Speicher[[#This Row],[DatumInbetriebnahme]],Speicher[[#This Row],[DatumAusserbetriebnahme]],Speicher[[#This Row],[GeplanteNutzungsdauer]], ND_default_storage) -> 6 | X16: =KorrFaktBZ(Speicher[[#This Row],[DatumInbetriebnahme]]*1,Speicher[[#This Row],[DatumAusserbetriebnahme]]*1,Report_start*1,Report_end*1) -> 1
W17: =EffektiveND(Speicher[[#This Row],[DatumInbetriebnahme]],Speicher[[#This Row],[DatumAusserbetriebnahme]],Speicher[[#This Row],[GeplanteNutzungsdauer]], ND_default_storage) -> 3 | X17: =KorrFaktBZ(Speicher[[#This Row],[DatumInbetriebnahme]]*1,Speicher[[#This Row],[DatumAusserbetriebnahme]]*1,Report_start*1,Report_end*1) -> 1
W18: =EffektiveND(Speicher[[#This Row],[DatumInbetriebnahme]],Speicher[[#This Row],[DatumAusserbetriebnahme]],Speicher[[#This Row],[GeplanteNutzungsdauer]], ND_default_storage) -> 3 | X18: =KorrFaktBZ(Speicher[[#This Row],[DatumInbetriebnahme]]*1,Speicher[[#This Row],[DatumAusserbetriebnahme]]*1,Report_start*1,Report_end*1) -> 1
W19: =EffektiveND(Speicher[[#This Row],[DatumInbetriebnahme]],Speicher[[#This Row],[DatumAusserbetriebnahme]],Speicher[[#This Row],[GeplanteNutzungsdauer]], ND_default_storage) -> 3 | X19: =KorrFaktBZ(Speicher[[#This Row],[DatumInbetriebnahme]]*1,Speicher[[#This Row],[DatumAusserbetriebnahme]]*1,Report_start*1,Report_end*1) -> 1
W20: =EffektiveND(Speicher[[#This Row],[DatumInbetriebnahme]],Speicher[[#This Row],[DatumAusserbetriebnahme]],Speicher[[#This Row],[GeplanteNutzungsdauer]], ND_default_storage) -> 3 | X20: =KorrFaktBZ(Speicher[[#This Row],[DatumInbetriebnahme]]*1,Speicher[[#This Row],[DatumAusserbetriebnahme]]*1,Report_start*1,Report_end*1) -> 1
W21: =EffektiveND(Speicher[[#This Row],[DatumInbetriebnahme]],Speicher[[#This Row],[DatumAusserbetriebnahme]],Speicher[[#This Row],[GeplanteNutzungsdauer]], ND_default_storage) -> 3 | X21: =KorrFaktBZ(Speicher[[#This Row],[DatumInbetriebnahme]]*1,Speicher[[#This Row],[DatumAusserbetriebnahme]]*1,Report_start*1,Report_end*1) -> 1
W22: =EffektiveND(Speicher[[#This Row],[DatumInbetriebnahme]],Speicher[[#This Row],[DatumAusserbetriebnahme]],Speicher[[#This Row],[GeplanteNutzungsdauer]], ND_default_storage) -> 3 | X22: =KorrFaktBZ(Speicher[[#This Row],[DatumInbetriebnahme]]*1,Speicher[[#This Row],[DatumAusserbetriebnahme]]*1,Report_start*1,Report_end*1) -> 1
W23: =EffektiveND(Speicher[[#This Row],[DatumInbetriebnahme]],Speicher[[#This Row],[DatumAusserbetriebnahme]],Speicher[[#This Row],[GeplanteNutzungsdauer]], ND_default_storage) -> 3 | X23: =KorrFaktBZ(Speicher[[#This Row],[DatumInbetriebnahme]]*1,Speicher[[#This Row],[DatumAusserbetriebnahme]]*1,Report_start*1,Report_end*1) -> 1
W24: =EffektiveND(Speicher[[#This Row],[DatumInbetriebnahme]],Speicher[[#This Row],[DatumAusserbetriebnahme]],Speicher[[#This Row],[GeplanteNutzungsdauer]], ND_default_storage) -> 3 | X24: =KorrFaktBZ(Speicher[[#This Row],[DatumInbetriebnahme]]*1,Speicher[[#This Row],[DatumAusserbetriebnahme]]*1,Report_start*1,Report_end*1) -> 1
W25: =EffektiveND(Speicher[[#This Row],[DatumInbetriebnahme]],Speicher[[#This Row],[DatumAusserbetriebnahme]],Speicher[[#This Row],[GeplanteNutzungsdauer]], ND_default_storage) -> 3 | X25: =KorrFaktBZ(Speicher[[#This Row],[DatumInbetriebnahme]]*1,Speicher[[#This Row],[DatumAusserbetriebnahme]]*1,Report_start*1,Report_end*1) -> 1
W26: =EffektiveND(Speicher[[#This Row],[DatumInbetriebnahme]],Speicher[[#This Row],[DatumAusserbetriebnahme]],Speicher[[#This Row],[GeplanteNutzungsdauer]], ND_default_storage) -> 3 | X26: =KorrFaktBZ(Speicher[[#This Row],[DatumInbetriebnahme]]*1,Speicher[[#This Row],[DatumAusserbetriebnahme]]*1,Report_start*1,Report_end*1) -> 1
W27: =EffektiveND(Speicher[[#This Row],[DatumInbetriebnahme]],Speicher[[#This Row],[DatumAusserbetriebnahme]],Speicher[[#This Row],[GeplanteNutzungsdauer]], ND_default_storage) -> 3 | X27: =KorrFaktBZ(Speicher[[#This Row],[DatumInbetriebnahme]]*1,Speicher[[#This Row],[DatumAusserbetriebnahme]]*1,Report_start*1,Report_end*1) -> 1
W28: =EffektiveND(Speicher[[#This Row],[DatumInbetriebnahme]],Speicher[[#This Row],[DatumAusserbetriebnahme]],Speicher[[#This Row],[GeplanteNutzungsdauer]], ND_default_storage) -> 3 | X28: =KorrFaktBZ(Speicher[[#This Row],[DatumInbetriebnahme]]*1,Speicher[[#This Row],[DatumAusserbetriebnahme]]*1,Report_start*1,Report_end*1) -> 1
W29: =EffektiveND(Speicher[[#This Row],[DatumInbetriebnahme]],Speicher[[#This Row],[DatumAusserbetriebnahme]],Speicher[[#This Row],[GeplanteNutzungsdauer]], ND_default_storage) -> 3 | X29: =KorrFaktBZ(Speicher[[#This Row],[DatumInbetriebnahme]]*1,Speicher[[#This Row],[DatumAusserbetriebnahme]]*1,Report_start*1,Report_end*1) -> 1
W30: =EffektiveND(Speicher[[#This Row],[DatumInbetriebnahme]],Speicher[[#This Row],[DatumAusserbetriebnahme]],Speicher[[#This Row],[GeplanteNutzungsdauer]], ND_default_storage) -> 3 | X30: =KorrFaktBZ(Speicher[[#This Row],[DatumInbetriebnahme]]*1,Speicher[[#This Row],[DatumAusserbetriebnahme]]*1,Report_start*1,Report_end*1) -> 1
W31: =EffektiveND(Speicher[[#This Row],[DatumInbetriebnahme]],Speicher[[#This Row],[DatumAusserbetriebnahme]],Speicher[[#This Row],[GeplanteNutzungsdauer]], ND_default_storage) -> 3 | X31: =KorrFaktBZ(Speicher[[#This Row],[DatumInbetriebnahme]]*1,Speicher[[#This Row],[DatumAusserbetriebnahme]]*1,Report_start*1,Report_end*1) -> 1
W32: =EffektiveND(Speicher[[#This Row],[DatumInbetriebnahme]],Speicher[[#This Row],[DatumAusserbetriebnahme]],Speicher[[#This Row],[GeplanteNutzungsdauer]], ND_default_storage) -> 3 | X32: =KorrFaktBZ(Speicher[[#This Row],[DatumInbetriebnahme]]*1,Speicher[[#This Row],[DatumAusserbetriebnahme]]*1,Report_start*1,Report_end*1) -> 1
W33: =EffektiveND(Speicher[[#This Row],[DatumInbetriebnahme]],Speicher[[#This Row],[DatumAusserbetriebnahme]],Speicher[[#This Row],[GeplanteNutzungsdauer]], ND_default_storage) -> 3 | X33: =KorrFaktBZ(Speicher[[#This Row],[DatumInbetriebnahme]]*1,Speicher[[#This Row],[DatumAusserbetriebnahme]]*1,Report_start*1,Report_end*1) -> 1
W34: =EffektiveND(Speicher[[#This Row],[DatumInbetriebnahme]],Speicher[[#This Row],[DatumAusserbetriebnahme]],Speicher[[#This Row],[GeplanteNutzungsdauer]], ND_default_storage) -> 3 | X34: =KorrFaktBZ(Speicher[[#This Row],[DatumInbetriebnahme]]*1,Speicher[[#This Row],[DatumAusserbetriebnahme]]*1,Report_start*1,Report_end*1) -> 1

Sheet 2c_Netzwerk-Geräte
B2: IT-Inventarliste - Anlage 2c (Netzwerk-Geräte) zur KPI4DCE-Berechnung
B3: Dokumentation gemäß Anforderungen 3.1.2.1 und 3.2.2.1 der Vergabekriterien
B5: Allgemeine Angaben | G5: Obligatorische Angaben Antragstellung Blauer Engel
B6: Rechenzentrum: | C6: =IF('Allgemeine Angaben'!C6<>"",'Allgemeine Angaben'!C6,"") -> Testrechenzentrum | G6: Ergänzende Angaben KPI4DCE (über das [+] ausklappbar)
B7: Bilanzdatum von: | C7: =IF(Report_start<>"",Report_start,"") -> 2018-01-01 | G7: * Angaben für Herstellungsaufwand
B8: Bilanzdatum bis: | C8: =IF(Report_end<>"",Report_end,"") -> 2018-12-31 | G8: ** Angaben für Zuordnung (Allokation)
G9: *** Angaben für Nutzen
G10: Automatisch berechnete Werte (keine Eingabe)
B11: Hinweis: Alle Angaben werden pro Gerät gemacht, auch wenn dieses mehrfach vorkommt
B12: * | D12: * | E12: * | H12: ** | I12: * | L12: (***) | M12: (***) | R12: *** | S12: ** | T12: **
B13: Anzahl bauglei- cher Geräte | C13: Eindeutige ID oder Komma-separierte ID-Liste | D13: Datum der Inbetriebnahme | E13: Datum der Außerbetriebnahme | F13: Hersteller | G13: Modell | H13: Nennleistung ohne Redundanz | I13: Geplante Nutzungsdauer | J13: Anschaffungskosten | K13: Währung Anschaffungskosten | L13: Anzahl Ports pro Gerät | M13: Maximale Bandbreite pro Port | N13: Netzwerkebene | O13: Anzahl Netzteile | P13: Gewicht | Q13: Mittlere genutzte Bandbreite interner Datenverkehr | R13: Mittlere genutzte Bandbreite externer Datenverkehr | S13: Mittlere Leistungsaufnahme | T13: Energiebedarf pro Jahr | U13: Effektive Nutzungsdauer | V13: Korrekturfaktor Berichtszeitraum (für Jahres- und Leistungswerte)
B14: [Stck] | C14: [Text (,Text, Text, ...)] | D14: [TT.MM.JJJJ] | E14: [TT.MM.JJJJ] | F14: [Text] | G14: [Text] | H14: [W/Stck] | I14: [Jahre] | J14: [Zahlenwert] | K14: [z.B. EUR | USD] | L14: [Anzahl/Stck] | M14: [Mbit/s] | N14: [intern, extern] | O14: [Anzahl/Stck] | P14: [kg/Stck] | Q14: [Mbit/s/Stck] | R14: [Mbit/s/Stck] | S14: [W/Stck] | T14: [kWh/Stck] | U14: [a]
B15: AnzahlNetzwerk | C15: UniqueID | D15: DatumInbetriebnahme | E15: DatumAusserbetriebnahme | F15: Herstellername | G15: Modellname | H15: Nennleistung | I15: GeplanteNutzungsdauer | J15: AnschaffungskostenProStueck | K15: WaehrungAnschaffungskosten | L15: AnzahlPorts | M15: MaximaleBandbreiteProPort | N15: Netzwerkebene | O15: AnzahlNetzteile | P15: Gewicht | Q15: MittlereGenutzteBandbreiteInternerDatenverkehr | R15: MittlereGenutzteBandbreiteExternerDatenverkehr | S15: MittlereLeistungsaufnahme | T15: EnergiebedarfProJahr | U15: EffektiveND | V15: KorrekturFaktorBZ
B16: 20 | H16: 100 | I16: 7 | L16: 48 | M16: 1000 | O16: 2 | R16: 2400 | S16: 114 | T16: =Netzwerk[[#This Row],[MittlereLeistungsaufnahme]]*8.76 -> 998.64 | U16: =EffektiveND(Netzwerk[[#This Row],[DatumInbetriebnahme]],Netzwerk[[#This Row],[DatumAusserbetriebnahme]],Netzwerk[[#This Row],[GeplanteNutzungsdauer]], ND_default_switch) -> 7 | V16: =KorrFaktBZ(Netzwerk[[#This Row],[DatumInbetriebnahme]]*1,Netzwerk[[#This Row],[DatumAusserbetriebnahme]]*1,Report_start*1,Report_end*1) -> 1
U17: =EffektiveND(Netzwerk[[#This Row],[DatumInbetriebnahme]],Netzwerk[[#This Row],[DatumAusserbetriebnahme]],Netzwerk[[#This Row],[GeplanteNutzungsdauer]], ND_default_switch) -> 3 | V17: =KorrFaktBZ(Netzwerk[[#This Row],[DatumInbetriebnahme]]*1,Netzwerk[[#This Row],[DatumAusserbetriebnahme]]*1,Report_start*1,Report_end*1) -> 1
U18: =EffektiveND(Netzwerk[[#This Row],[DatumInbetriebnahme]],Netzwerk[[#This Row],[DatumAusserbetriebnahme]],Netzwerk[[#This Row],[GeplanteNutzungsdauer]], ND_default_switch) -> 3 | V18: =KorrFaktBZ(Netzwerk[[#This Row],[DatumInbetriebnahme]]*1,Netzwerk[[#This Row],[DatumAusserbetriebnahme]]*1,Report_start*1,Report_end*1) -> 1
U19: =EffektiveND(Netzwerk[[#This Row],[DatumInbetriebnahme]],Netzwerk[[#This Row],[DatumAusserbetriebnahme]],Netzwerk[[#This Row],[GeplanteNutzungsdauer]], ND_default_switch) -> 3 | V19: =KorrFaktBZ(Netzwerk[[#This Row],[DatumInbetriebnahme]]*1,Netzwerk[[#This Row],[DatumAusserbetriebnahme]]*1,Report_start*1,Report_end*1) -> 1
U20: =EffektiveND(Netzwerk[[#This Row],[DatumInbetriebnahme]],Netzwerk[[#This Row],[DatumAusserbetriebnahme]],Netzwerk[[#This Row],[GeplanteNutzungsdauer]], ND_default_switch) -> 3 | V20: =KorrFaktBZ(Netzwerk[[#This Row],[DatumInbetriebnahme]]*1,Netzwerk[[#This Row],[DatumAusserbetriebnahme]]*1,Report_start*1,Report_end*1) -> 1
U21: =EffektiveND(Netzwerk[[#This Row],[DatumInbetriebnahme]],Netzwerk[[#This Row],[DatumAusserbetriebnahme]],Netzwerk[[#This Row],[GeplanteNutzungsdauer]], ND_default_switch) -> 3 | V21: =KorrFaktBZ(Netzwerk[[#This Row],[DatumInbetriebnahme]]*1,Netzwerk[[#This Row],[DatumAusserbetriebnahme]]*1,Report_start*1,Report_end*1) -> 1
U22: =EffektiveND(Netzwerk[[#This Row],[DatumInbetriebnahme]],Netzwerk[[#This Row],[DatumAusserbetriebnahme]],Netzwerk[[#This Row],[GeplanteNutzungsdauer]], ND_default_switch) -> 3 | V22: =KorrFaktBZ(Netzwerk[[#This Row],[DatumInbetriebnahme]]*1,Netzwerk[[#This Row],[DatumAusserbetriebnahme]]*1,Report_start*1,Report_end*1) -> 1
U23: =EffektiveND(Netzwerk[[#This Row],[DatumInbetriebnahme]],Netzwerk[[#This Row],[DatumAusserbetriebnahme]],Netzwerk[[#This Row],[GeplanteNutzungsdauer]], ND_default_switch) -> 3 | V23: =KorrFaktBZ(Netzwerk[[#This Row],[DatumInbetriebnahme]]*1,Netzwerk[[#This Row],[DatumAusserbetriebnahme]]*1,Report_start*1,Report_end*1) -> 1
U24: =EffektiveND(Netzwerk[[#This Row],[DatumInbetriebnahme]],Netzwerk[[#This Row],[DatumAusserbetriebnahme]],Netzwerk[[#This Row],[GeplanteNutzungsdauer]], ND_default_switch) -> 3 | V24: =KorrFaktBZ(Netzwerk[[#This Row],[DatumInbetriebnahme]]*1,Netzwerk[[#This Row],[DatumAusserbetriebnahme]]*1,Report_start*1,Report_end*1) -> 1
U25: =EffektiveND(Netzwerk[[#This Row],[DatumInbetriebnahme]],Netzwerk[[#This Row],[DatumAusserbetriebnahme]],Netzwerk[[#This Row],[GeplanteNutzungsdauer]], ND_default_switch) -> 3 | V25: =KorrFaktBZ(Netzwerk[[#This Row],[DatumInbetriebnahme]]*1,Netzwerk[[#This Row],[DatumAusserbetriebnahme]]*1,Report_start*1,Report_end*1) -> 1
U26: =EffektiveND(Netzwerk[[#This Row],[DatumInbetriebnahme]],Netzwerk[[#This Row],[DatumAusserbetriebnahme]],Netzwerk[[#This Row],[GeplanteNutzungsdauer]], ND_default_switch) -> 3 | V26: =KorrFaktBZ(Netzwerk[[#This Row],[DatumInbetriebnahme]]*1,Netzwerk[[#This Row],[DatumAusserbetriebnahme]]*1,Report_start*1,Report_end*1) -> 1
U27: =EffektiveND(Netzwerk[[#This Row],[DatumInbetriebnahme]],Netzwerk[[#This Row],[DatumAusserbetriebnahme]],Netzwerk[[#This Row],[GeplanteNutzungsdauer]], ND_default_switch) -> 3 | V27: =KorrFaktBZ(Netzwerk[[#This Row],[DatumInbetriebnahme]]*1,Netzwerk[[#This Row],[DatumAusserbetriebnahme]]*1,Report_start*1,Report_end*1) -> 1
U28: =EffektiveND(Netzwerk[[#This Row],[DatumInbetriebnahme]],Netzwerk[[#This Row],[DatumAusserbetriebnahme]],Netzwerk[[#This Row],[GeplanteNutzungsdauer]], ND_default_switch) -> 3 | V28: =KorrFaktBZ(Netzwerk[[#This Row],[DatumInbetriebnahme]]*1,Netzwerk[[#This Row],[DatumAusserbetriebnahme]]*1,Report_start*1,Report_end*1) -> 1
U29: =EffektiveND(Netzwerk[[#This Row],[DatumInbetriebnahme]],Netzwerk[[#This Row],[DatumAusserbetriebnahme]],Netzwerk[[#This Row],[GeplanteNutzungsdauer]], ND_default_switch) -> 3 | V29: =KorrFaktBZ(Netzwerk[[#This Row],[DatumInbetriebnahme]]*1,Netzwerk[[#This Row],[DatumAusserbetriebnahme]]*1,Report_start*1,Report_end*1) -> 1
U30: =EffektiveND(Netzwerk[[#This Row],[DatumInbetriebnahme]],Netzwerk[[#This Row],[DatumAusserbetriebnahme]],Netzwerk[[#This Row],[GeplanteNutzungsdauer]], ND_default_switch) -> 3 | V30: =KorrFaktBZ(Netzwerk[[#This Row],[DatumInbetriebnahme]]*1,Netzwerk[[#This Row],[DatumAusserbetriebnahme]]*1,Report_start*1,Report_end*1) -> 1
U31: =EffektiveND(Netzwerk[[#This Row],[DatumInbetriebnahme]],Netzwerk[[#This Row],[DatumAusserbetriebnahme]],Netzwerk[[#This Row],[GeplanteNutzungsdauer]], ND_default_switch) -> 3 | V31: =KorrFaktBZ(Netzwerk[[#This Row],[DatumInbetriebnahme]]*1,Netzwerk[[#This Row],[DatumAusserbetriebnahme]]*1,Report_start*1,Report_end*1) -> 1
U32: =EffektiveND(Netzwerk[[#This Row],[DatumInbetriebnahme]],Netzwerk[[#This Row],[DatumAusserbetriebnahme]],Netzwerk[[#This Row],[GeplanteNutzungsdauer]], ND_default_switch) -> 3 | V32: =KorrFaktBZ(Netzwerk[[#This Row],[DatumInbetriebnahme]]*1,Netzwerk[[#This Row],[DatumAusserbetriebnahme]]*1,Report_start*1,Report_end*1) -> 1
U33: =EffektiveND(Netzwerk[[#This Row],[DatumInbetriebnahme]],Netzwerk[[#This Row],[DatumAusserbetriebnahme]],Netzwerk[[#This Row],[GeplanteNutzungsdauer]], ND_default_switch) -> 3 | V33: =KorrFaktBZ(Netzwerk[[#This Row],[DatumInbetriebnahme]]*1,Netzwerk[[#This Row],[DatumAusserbetriebnahme]]*1,Report_start*1,Report_end*1) -> 1
U34: =EffektiveND(Netzwerk[[#This Row],[DatumInbetriebnahme]],Netzwerk[[#This Row],[DatumAusserbetriebnahme]],Netzwerk[[#This Row],[GeplanteNutzungsdauer]], ND_default_switch) -> 3 | V34: =KorrFaktBZ(Netzwerk[[#This Row],[DatumInbetriebnahme]]*1,Netzwerk[[#This Row],[DatumAusserbetriebnahme]]*1,Report_start*1,Report_end*1) -> 1

Sheet 2d_PDU
B2: IT-Inventarliste - Anlage 2d (Neuanschaffung intelligenter PDUs) zur KPI4DCE-Berechnung
B3: Dokumentation gemäß Anforderungen 3.2.2.1 und 3.2.2.5 der Vergabekriterien
B5: Allgemeine Angaben | H5: Legende
B6: Rechenzentrum: | C6: =IF('Allgemeine Angaben'!C6<>"",'Allgemeine Angaben'!C6,"") -> Testrechenzentrum | H6: Obligatorische Angaben Abschlussevaluation
B7: Bilanzdatum von: | C7: =IF(Report_start<>"",Report_start,"") -> 2018-01-01
B8: Bilanzdatum bis: | C8: =IF(Report_end<>"",Report_end,"") -> 2018-12-31
B11: Hinweis: Alle Angaben werden pro Gerät gemacht, auch wenn dieses mehrfach vorkommt
B13: Anzahl bauglei- cher Geräte | C13: Eindeutige ID oder Komma-separierte ID-Liste | D13: Datum der Inbetriebnahme | E13: Datum der Außerbetriebnahme | F13: Hersteller | G13: Modell | H13: Anzahl Stromausgänge | I13: Verlustleistung
B14: [Stck] | C14: [Text (,Text, Text, ...)] | D14: [TT.MM.JJJ] | E14: [TT.MM.JJJ] | F14: [Text] | G14: [Text] | H14: [Anzahl/Stck] | I14: [W/Stck]
B15: Anzahl | C15: UniqueID | D15: DatumInbetriebnahme | E15: DatumAusserbetriebnahme | F15: Herstellername | G15: Modellname | H15: AnzahlStromausgaenge | I15: VerlustleistungGesamt
B16: 30 | D16: 2017-01-01 | E16: 2018-12-31 | F16: Elektrofritz | G16: Superverteiler X1

Sheet 2e_Energie_Monitoring
B2: Monitoring Energie - Anlage 2e zur KPI4DCE-Berechnung
B3: Dokumentation gemäß Anforderungen 3.1.1.1, 3.1.1.2 und 3.2.1.1 der Vergabekriterien
B5: Allgemeine Angaben | H5: Obligatorische Angaben Antragstellung Blauer Engel
B6: Rechenzentrum: | C6: =IF('Allgemeine Angaben'!C6<>"",'Allgemeine Angaben'!C6,"") -> Testrechenzentrum | H6: Ergänzende Angaben KPI4DCE (über das [+] ausklappbar)
B7: Bilanzdatum von: | C7: =IF(Report_start<>"",Report_start,"") -> 2018-01-01 | H7: * Angaben für Aufwand Nutzungsphase
B8: Bilanzdatum bis: | C8: =IF(Report_end<>"",Report_end,"") -> 2018-12-31 | H8: ** Angaben für Zuordnung (Allokation) | P8: ° Die Kältearbeit ist die abgeführte Wärmemenge Qth,RZ im Betrachtungszeitraum. Sie geht in die Berechnung des JAZ ein.
H9: *** Angaben für Nutzen | P9: °° Die thermische Kühllast berechnet sich vereinfacht durch die Summe der elektrischen Anschlussleistungen im zu kühlenden Raum.
H10: Automatisch berechnete Werte (keine Eingabe)
B11: * | C11: * | D11: * | F11: ** | H11: ** | J11: ** | V11: * | W11: * | X11: **
B12: Beginn Monitoring-zeitraum | C12: Ende Monitoring-zeitraum | D12: Strombedarf RZ gesamt | E12: Spitzenlast RZ gesamt | F12: Strombedarf Server | G12: Spitzenlast Server | H12: Strombedarf Storage | I12: Spitzenlast Storage | J12: Strombedarf Netzwerk | K12: Spitzenlast Netzwerk | L12: Strombedarf IT | M12: Spitzenlast IT | N12: Strombedarf Kühlsystem | O12: Spitzenlast Kühlsystem (elektrisch) | P12: Kältearbeit Kühlsystem (thermisch) | Q12: Kühllast Kühlsystem (thermisch) | R12: Strombedarf USV (Verluste) | S12: Spitzenlast USV | T12: Strombedarf Verluste PDU | U12: Strombedarf Sonstiges | V12: Brennstoffbedarf | W12: Brennstoffart | X12: PUE | Y12: JAZ | Z12: Anteil Monitoring- zeitraum im Berichtszeitraum
D13: MPEVU + MPEE | E13: MPEVU + MPEE | F13: MPIT2_SV | G13: MPIT2_SV | H13: MPIT2_St | I13: MPIT2_St | J13: MPIT2_NW | K13: MPIT2_NW | L13: MPIT2 | M13: MPIT2 | N13: MPKS | O13: MPKS | P13: (siehe °) | Q13: (siehe °°) | R13: MPUSV - MPIT1 | S13: MPUSV | T13: MPIT1 - MPIT2 | U13: MPSo
B14: [TT.MM.JJJ] | C14: [TT.MM.JJJ] | D14: [kWhel] | E14: [kWel] | F14: [kWhel] | G14: [kWel] | H14: [kWhel] | I14: [kWel] | J14: [kWhel] | K14: [kWel] | L14: [kWhel] | M14: [kWel] | N14: [kWhel] | O14: [kWel] | P14: [kWhth] | Q14: [kWth] | R14: [kWhel] | S14: [kWel] | T14: [kWhel] | U14: [kWhel] | V14: [kWh] | W14: [Heizoel | Erdgas | Fluessiggas | Holz-Pellets | Holz-Hackschnitzel-Wald | Holz-Hackschnitzel-KUP] | X14: [kWh/kWh] | Y14: [kWhth/kWhel] | Z14: [-]
B15: MonitoringStart | C15: MonitoringEnde | D15: StrombedarfRZgesamt | E15: SpitzenlastRZgesamt | F15: StrombedarfServer | G15: SpitzenlastServer | H15: StrombedarfStorage | I15: SpitzenlastStorage | J15: StrombedarfNetzwerk | K15: SpitzenlastNetzwerk | L15: StrombedarfIT | M15: SpitzenlastIT | N15: StrombedarfKS | O15: SpitzenlastKSel | P15: KaeltearbeitKSth | Q15: KuehllastKSth | R15: StrombedarfVerlusteUSV | S15: SpitzenlastUSV | T15: StrombedarfVerlustePDU | U15: StrombedarfSonstiges | V15: Brennstoffbedarf | W15: Brennstoffart | X15: PUE | Y15: JAZ | Z15: RatioMZzuBZ
B16: 2018-01-31 | C16: 2018-12-31 | D16: 520560 | F16: 157680 | H16: 190800 | J16: 52560 | L16: 401040 | N16: 119520 | P16: 401040 | X16: =IF(EnergieMonitoring[[#This Row],[StrombedarfIT]]>0,EnergieMonitoring[[#This Row],[StrombedarfRZgesamt]]/EnergieMonitoring[[#This Row],[StrombedarfIT]],"") -> 1.298025135 | Y16: =IF(EnergieMonitoring[[#This Row],[StrombedarfKS]]>0,EnergieMonitoring[[#This Row],[KaeltearbeitKSth]]/EnergieMonitoring[[#This Row],[StrombedarfKS]],"") -> 3.355421687 | Z16: =KorrFaktBZ(Report_start*1,Report_end*1,EnergieMonitoring[[#This Row],[MonitoringStart]]*1,EnergieMonitoring[[#This Row],[MonitoringEnde]]*1) -> 1
X17: =IF(EnergieMonitoring[[#This Row],[StrombedarfIT]]>0,EnergieMonitoring[[#This Row],[StrombedarfRZgesamt]]/EnergieMonitoring[[#This Row],[StrombedarfIT]],"") ->  | Y17: =IF(EnergieMonitoring[[#This Row],[StrombedarfKS]]>0,EnergieMonitoring[[#This Row],[KaeltearbeitKSth]]/EnergieMonitoring[[#This Row],[StrombedarfKS]],"") ->  | Z17: =KorrFaktBZ(Report_start*1,Report_end*1,EnergieMonitoring[[#This Row],[MonitoringStart]]*1,EnergieMonitoring[[#This Row],[MonitoringEnde]]*1) -> 0
X18: =IF(EnergieMonitoring[[#This Row],[StrombedarfIT]]>0,EnergieMonitoring[[#This Row],[StrombedarfRZgesamt]]/EnergieMonitoring[[#This Row],[StrombedarfIT]],"") ->  | Y18: =IF(EnergieMonitoring[[#This Row],[StrombedarfKS]]>0,EnergieMonitoring[[#This Row],[KaeltearbeitKSth]]/EnergieMonitoring[[#This Row],[StrombedarfKS]],"") ->  | Z18: =KorrFaktBZ(Report_start*1,Report_end*1,EnergieMonitoring[[#This Row],[MonitoringStart]]*1,EnergieMonitoring[[#This Row],[MonitoringEnde]]*1) -> 0
X19: =IF(EnergieMonitoring[[#This Row],[StrombedarfIT]]>0,EnergieMonitoring[[#This Row],[StrombedarfRZgesamt]]/EnergieMonitoring[[#This Row],[StrombedarfIT]],"") ->  | Y19: =IF(EnergieMonitoring[[#This Row],[StrombedarfKS]]>0,EnergieMonitoring[[#This Row],[KaeltearbeitKSth]]/EnergieMonitoring[[#This Row],[StrombedarfKS]],"") ->  | Z19: =KorrFaktBZ(Report_start*1,Report_end*1,EnergieMonitoring[[#This Row],[MonitoringStart]]*1,EnergieMonitoring[[#This Row],[MonitoringEnde]]*1) -> 0
X20: =IF(EnergieMonitoring[[#This Row],[StrombedarfIT]]>0,EnergieMonitoring[[#This Row],[StrombedarfRZgesamt]]/EnergieMonitoring[[#This Row],[StrombedarfIT]],"") ->  | Y20: =IF(EnergieMonitoring[[#This Row],[StrombedarfKS]]>0,EnergieMonitoring[[#This Row],[KaeltearbeitKSth]]/EnergieMonitoring[[#This Row],[StrombedarfKS]],"") ->  | Z20: =KorrFaktBZ(Report_start*1,Report_end*1,EnergieMonitoring[[#This Row],[MonitoringStart]]*1,EnergieMonitoring[[#This Row],[MonitoringEnde]]*1) -> 0
X21: =IF(EnergieMonitoring[[#This Row],[StrombedarfIT]]>0,EnergieMonitoring[[#This Row],[StrombedarfRZgesamt]]/EnergieMonitoring[[#This Row],[StrombedarfIT]],"") ->  | Y21: =IF(EnergieMonitoring[[#This Row],[StrombedarfKS]]>0,EnergieMonitoring[[#This Row],[KaeltearbeitKSth]]/EnergieMonitoring[[#This Row],[StrombedarfKS]],"") ->  | Z21: =KorrFaktBZ(Report_start*1,Report_end*1,EnergieMonitoring[[#This Row],[MonitoringStart]]*1,EnergieMonitoring[[#This Row],[MonitoringEnde]]*1) -> 0
X22: =IF(EnergieMonitoring[[#This Row],[StrombedarfIT]]>0,EnergieMonitoring[[#This Row],[StrombedarfRZgesamt]]/EnergieMonitoring[[#This Row],[StrombedarfIT]],"") ->  | Y22: =IF(EnergieMonitoring[[#This Row],[StrombedarfKS]]>0,EnergieMonitoring[[#This Row],[KaeltearbeitKSth]]/EnergieMonitoring[[#This Row],[StrombedarfKS]],"") ->  | Z22: =KorrFaktBZ(Report_start*1,Report_end*1,EnergieMonitoring[[#This Row],[MonitoringStart]]*1,EnergieMonitoring[[#This Row],[MonitoringEnde]]*1) -> 0
X23: =IF(EnergieMonitoring[[#This Row],[StrombedarfIT]]>0,EnergieMonitoring[[#This Row],[StrombedarfRZgesamt]]/EnergieMonitoring[[#This Row],[StrombedarfIT]],"") ->  | Y23: =IF(EnergieMonitoring[[#This Row],[StrombedarfKS]]>0,EnergieMonitoring[[#This Row],[KaeltearbeitKSth]]/EnergieMonitoring[[#This Row],[StrombedarfKS]],"") ->  | Z23: =KorrFaktBZ(Report_start*1,Report_end*1,EnergieMonitoring[[#This Row],[MonitoringStart]]*1,EnergieMonitoring[[#This Row],[MonitoringEnde]]*1) -> 0
X24: =IF(EnergieMonitoring[[#This Row],[StrombedarfIT]]>0,EnergieMonitoring[[#This Row],[StrombedarfRZgesamt]]/EnergieMonitoring[[#This Row],[StrombedarfIT]],"") ->  | Y24: =IF(EnergieMonitoring[[#This Row],[StrombedarfKS]]>0,EnergieMonitoring[[#This Row],[KaeltearbeitKSth]]/EnergieMonitoring[[#This Row],[StrombedarfKS]],"") ->  | Z24: =KorrFaktBZ(Report_start*1,Report_end*1,EnergieMonitoring[[#This Row],[MonitoringStart]]*1,EnergieMonitoring[[#This Row],[MonitoringEnde]]*1) -> 0
X25: =IF(EnergieMonitoring[[#This Row],[StrombedarfIT]]>0,EnergieMonitoring[[#This Row],[StrombedarfRZgesamt]]/EnergieMonitoring[[#This Row],[StrombedarfIT]],"") ->  | Y25: =IF(EnergieMonitoring[[#This Row],[StrombedarfKS]]>0,EnergieMonitoring[[#This Row],[KaeltearbeitKSth]]/EnergieMonitoring[[#This Row],[StrombedarfKS]],"") ->  | Z25: =KorrFaktBZ(Report_start*1,Report_end*1,EnergieMonitoring[[#This Row],[MonitoringStart]]*1,EnergieMonitoring[[#This Row],[MonitoringEnde]]*1) -> 0
X26: =IF(EnergieMonitoring[[#This Row],[StrombedarfIT]]>0,EnergieMonitoring[[#This Row],[StrombedarfRZgesamt]]/EnergieMonitoring[[#This Row],[StrombedarfIT]],"") ->  | Y26: =IF(EnergieMonitoring[[#This Row],[StrombedarfKS]]>0,EnergieMonitoring[[#This Row],[KaeltearbeitKSth]]/EnergieMonitoring[[#This Row],[StrombedarfKS]],"") ->  | Z26: =KorrFaktBZ(Report_start*1,Report_end*1,EnergieMonitoring[[#This Row],[MonitoringStart]]*1,EnergieMonitoring[[#This Row],[MonitoringEnde]]*1) -> 0
X27: =IF(EnergieMonitoring[[#This Row],[StrombedarfIT]]>0,EnergieMonitoring[[#This Row],[StrombedarfRZgesamt]]/EnergieMonitoring[[#This Row],[StrombedarfIT]],"") ->  | Y27: =IF(EnergieMonitoring[[#This Row],[StrombedarfKS]]>0,EnergieMonitoring[[#This Row],[KaeltearbeitKSth]]/EnergieMonitoring[[#This Row],[StrombedarfKS]],"") ->  | Z27: =KorrFaktBZ(Report_start*1,Report_end*1,EnergieMonitoring[[#This Row],[MonitoringStart]]*1,EnergieMonitoring[[#This Row],[MonitoringEnde]]*1) -> 0

Sheet 2f_IT_Monitoring
B2: Monitoring IT-Last - Anlage 2f zur KPI4DCE-Berechnung
B3: Dokumentation gemäß Anforderungen 3.1.2.2 und 3.2.2.2 der Vergabekriterien
B5: Allgemeine Angaben | H5: Obligatorische Angaben Antragstellung Blauer Engel
B6: Rechenzentrum: | C6: =IF('Allgemeine Angaben'!C6<>"",'Allgemeine Angaben'!C6,"") -> Testrechenzentrum | H6: Ergänzende Angaben KPI4DCE
B7: Bilanzdatum von: | C7: =IF(Report_start<>"",Report_start,"") -> 2018-01-01 | H7: * Angaben für Aufwand Nutzungsphase
B8: Bilanzdatum bis: | C8: =IF(Report_end<>"",Report_end,"") -> 2018-12-31 | H8: ** Angaben für Zuordnung (Allokation)
H9: *** Angaben für Nutzen
H10: Automatisch berechnete Werte (keine Eingabe)
B13: Beginn Monitoring-zeitraum | C13: Ende Monitoring-zeitraum | D13: Mittlere CPU-Auslastung (ITEUsv) | E13: Mittlere Storage-Auslastung | F13: Datenübertragung extern | G13: Anteil Monitoring- zeitraum im Berichtszeitraum
B14: [TT.MM.JJJ] | C14: [TT.MM.JJJ] | D14: {0...100} [%] | E14: {0...100} [%] | F14: [Gbit] | G14: [-]
B15: MonitoringStart | C15: MonitoringEnde | D15: MittelwertITEUsv | E15: MittlereAuslastungStorage | F15: ExterneDatenuebertragung | G15: RatioMZzuBZ
B16: 2018-01-31 | C16: 2018-12-31 | D16: 11 | E16: 87 | F16: =0.1*8760*60*60 -> 3153600 | G16: =KorrFaktBZ(Report_start*1,Report_end*1,ITMonitoring[[#This Row],[MonitoringStart]]*1,ITMonitoring[[#This Row],[MonitoringEnde]]*1) -> 1
G17: =KorrFaktBZ(Report_start*1,Report_end*1,ITMonitoring[[#This Row],[MonitoringStart]]*1,ITMonitoring[[#This Row],[MonitoringEnde]]*1) -> 0
G18: =KorrFaktBZ(Report_start*1,Report_end*1,ITMonitoring[[#This Row],[MonitoringStart]]*1,ITMonitoring[[#This Row],[MonitoringEnde]]*1) -> 0
G19: =KorrFaktBZ(Report_start*1,Report_end*1,ITMonitoring[[#This Row],[MonitoringStart]]*1,ITMonitoring[[#This Row],[MonitoringEnde]]*1) -> 0
G20: =KorrFaktBZ(Report_start*1,Report_end*1,ITMonitoring[[#This Row],[MonitoringStart]]*1,ITMonitoring[[#This Row],[MonitoringEnde]]*1) -> 0
G21: =KorrFaktBZ(Report_start*1,Report_end*1,ITMonitoring[[#This Row],[MonitoringStart]]*1,ITMonitoring[[#This Row],[MonitoringEnde]]*1) -> 0
G22: =KorrFaktBZ(Report_start*1,Report_end*1,ITMonitoring[[#This Row],[MonitoringStart]]*1,ITMonitoring[[#This Row],[MonitoringEnde]]*1) -> 0
G23: =KorrFaktBZ(Report_start*1,Report_end*1,ITMonitoring[[#This Row],[MonitoringStart]]*1,ITMonitoring[[#This Row],[MonitoringEnde]]*1) -> 0
G24: =KorrFaktBZ(Report_start*1,Report_end*1,ITMonitoring[[#This Row],[MonitoringStart]]*1,ITMonitoring[[#This Row],[MonitoringEnde]]*1) -> 0
G25: =KorrFaktBZ(Report_start*1,Report_end*1,ITMonitoring[[#This Row],[MonitoringStart]]*1,ITMonitoring[[#This Row],[MonitoringEnde]]*1) -> 0
G26: =KorrFaktBZ(Report_start*1,Report_end*1,ITMonitoring[[#This Row],[MonitoringStart]]*1,ITMonitoring[[#This Row],[MonitoringEnde]]*1) -> 0
G27: =KorrFaktBZ(Report_start*1,Report_end*1,ITMonitoring[[#This Row],[MonitoringStart]]*1,ITMonitoring[[#This Row],[MonitoringEnde]]*1) -> 0
G28: =KorrFaktBZ(Report_start*1,Report_end*1,ITMonitoring[[#This Row],[MonitoringStart]]*1,ITMonitoring[[#This Row],[MonitoringEnde]]*1) -> 0

Sheet 2g_Kälteanlagen
B2: IT-Inventarliste - Anlage 2g (Kälteanlagen) zur KPI4DCE-Berechnung
B3: Dokumentation gemäß Anforderungen 3.1.2.1 und 3.2.2.1 der Vergabekriterien
B5: Allgemeine Angaben | H5: Obligatorische Angaben Antragstellung Blauer Engel
B6: Rechenzentrum: | C6: =IF('Allgemeine Angaben'!C6<>"",'Allgemeine Angaben'!C6,"") -> Testrechenzentrum | H6: Ergänzende Angaben KPI4DCE
B7: Bilanzdatum von: | C7: =IF(Report_start<>"",Report_start,"") -> 2018-01-01 | H7: * Angaben für Aufwand Nutzungsphase
B8: Bilanzdatum bis: | C8: =IF(Report_end<>"",Report_end,"") -> 2018-12-31 | H8: ** Angaben für Zuordnung (Allokation)
H9: *** Angaben für Nutzen
B11: Hinweis: Alle Angaben werden pro Gerät gemacht, auch wenn dieses mehrfach vorkommt
B12: * | D12: * | E12: * | L12: * | M12: * | N12: * | O12: * | P12: * | Q12: *
B13: Anzahl bauglei- cher Geräte | C13: Eindeutige ID oder Komma-separierte ID-Liste | D13: Datum der Inbetriebnahme | E13: Datum der Außerbetriebnahme | F13: Hersteller | G13: Modell | H13: Nennleistung elektrisch | I13: Nennleistung Kälte | J13: Anschaffungskosten | K13: Währung Anschaffungskosten | L13: Art des Kaeltemittels (korrekte Bezeichnunhg verwenden!) | M13: Kaeltemittel Füllmenge | N13: Verdampfungsart | O13: Leckagerate pro Jahr | P13: Nachfüllmenge Kältemittel pro Jahr (alternativ zu Leckagerate, höhere Priorität) | Q13: Wasserverbrauch pro Jahr | R13: Wasserqualität | S13: Energiebedarf pro Jahr
B14: [Stck] | C14: [Text (,Text, Text, ...)] | D14: [TT.MM.JJJJ] | E14: [TT.MM.JJJJ] | F14: [Text] | G14: [Text] | H14: [kW_el] | I14: [kW_th] | J14: [Zahlenwert] | K14: [z.B. EUR | USD] | L14: [R134A | R290 | R32 | R404A | R407A | R407C | R410A | R717 | R718 | R744] | M14: [kg/Stck] | N14: [Direktverdampfer | Fluessigkeitskuehler] | O14: [-] | P14: [kg/Stck] | Q14: [m3/Stck] | R14: [Trinkwasser | ...] | S14: [kWh/Stck]
B15: Anzahl | C15: UniqueID | D15: DatumInbetriebnahme | E15: DatumAusserbetriebnahme | F15: Herstellername | G15: Modellname | H15: NennleistungElektrisch | I15: NennleistungKaelte | J15: AnschaffungskostenProStueck | K15: WaehrungAnschaffungskosten | L15: KaeltemittelArt | M15: KaeltemittelFuellmenge | N15: Verdampfungsart | O15: LeckagerateProJahr | P15: KaeltemittelNachfuellmengeProJahr | Q15: WasserverbrauchProJahr | R15: Wasserqualitaet | S15: EnergiebedarfProJahr
B16: 2 | D16: 2015-06-15 | E16: 2018-12-31 | F16: Frostiko | G16: Kühl1 | H16: 2000 | L16: R134A | M16: 100 | P16: 2 | Q16: 2

Sheet Faktoren (hidden)
A1: Faktoren | B1: Wert | C1: Unit | D1: Berechnung im VBA-Makro | E1: Beispielrechnungen
A2: ADP_CPU_DieSize | B2: 5.86547e-07 | C2: kg Sb eq. /(cm² CPU Die-Fläche / Stück CPU) | D2: GWP_CPUs = AnzahlCPU * ((AnzahlKerneProCPU * DieSizeFaktor + DieSizeKonstante) * GWP_CPU_DieSize + GWP_CPU_Gold + GWP_CPU_T) | E2: CPUs
A3: ADP_CPU_Gold | B3: 0.01993384905 | C3: kg Sb eq./ Stück CPU | E3: AnzahlCPU | F3: 1
A4: ADP_CPU_T | B4: 4.327476609e-08 | C4: kg Sb eq./ Stück CPU | E4: AnzahlKerneProCPU | F4: 4
A5: GWP_CPU_DieSize | B5: 1.97398 | C5: kg CO2 eq. /(cm² CPU Die-Fläche / Stück CPU) | E5: GWP_CPUs | F5: =$F$3 * (($F$4 * DieSizeFaktor + DieSizeKonstante) * GWP_CPU_DieSize + GWP_CPU_Gold + GWP_CPU_T) -> 8.929098544 | G5: kg CO2 eq.
A6: GWP_CPU_Gold | B6: 5.672337843 | C6: kg CO2 eq./ Stück CPU | E6: ADP_CPUs | F6: =$F$3 * (($F$4 * DieSizeFaktor + DieSizeKonstante) * ADP_CPU_DieSize + ADP_CPU_Gold + ADP_CPU_T) -> 0.01993475744 | G6: kg Sb eq.
A7: GWP_CPU_T | B7: 0.34527838 | C7: kg CO2 eq./ Stück CPU | E7: KEA_CPUs | F7: =$F$3 * (($F$4 * DieSizeFaktor + DieSizeKonstante) * KEA_CPU_DieSize + KEA_CPU_Gold + KEA_CPU_T) -> 132.2561243 | G7: MJ
A8: KEA_CPU_DieSize | B8: 26.54571 | C8: MJ /(cm² CPU Die-Fläche / Stück CPU)
A9: KEA_CPU_Gold | B9: 87.77150292 | C9: MJ/ Stück CPU
A10: KEA_CPU_T | B10: 5.331557343 | C10: MJ/ Stück CPU | E10: Kühlkörper
A11: ADP_KK | B11: 0.00051 | C11: kg Sb eq./ Stück CPU | D11: GWP_KKs = AnzahlCPU * GWP_KK | E11: GWP_KKs | F11: =$F$3 * GWP_KK -> 3.1246 | G11: kg CO2 eq.
A12: GWP_KK | B12: 3.1246 | C12: kg CO2 eq./ Stück CPU | E12: ADP_KKs | F12: =$F$3 * ADP_KK -> 0.00051 | G12: kg Sb eq.
A13: KEA_KK | B13: 63.2646 | C13: MJ/ Stück CPU | E13: KEA_KKs | F13: =$F$3 * KEA_KK -> 63.2646 | G13: MJ
A14: ADP_RAM_DieSize | B14: 6.30491e-05 | C14: kg Sb eq. / (cm² Die-Fläche / RAM-Riegel) | D14: GWP_RAMs = AnzahlRAMModule * (GByteRAM / RAMproDie * GWP_RAM_DieSize + GWP_RAM_Gold + GWP_RAM_PCB + GWP_RAM_T)
A15: ADP_RAM_PCB | B15: 6.232421464e-05 | C15: kg Sb eq./ RAM-Riegel | E15: RAM
A16: ADP_RAM_Gold | B16: 0.001631239606 | C16: kg Sb eq./ RAM-Riegel | E16: AnzahlRAMModule | F16: 8
A17: ADP_RAM_T | B17: 3.745624087e-07 | C17: kg Sb eq./ RAM-Riegel | E17: GByteRAM | F17: 8
A18: GWP_RAM_DieSize | B18: 2.197556811 | C18: kg CO2 eq. / (cm² Die-Fläche / RAM-Riegel) | E18: GWP_RAMs | F18: =$F$16 * ($F$17 / RAMproDie * GWP_RAM_DieSize + GWP_RAM_Gold + GWP_RAM_PCB + GWP_RAM_T) -> 116.7778193 | G18: kg CO2 eq.
A19: GWP_RAM_PCB | B19: 1.768264169 | C19: kg CO2 eq./ RAM-Riegel | E19: ADP_RAMs | F19: =$F$16 * ($F$17 / RAMproDie * ADP_RAM_DieSize + ADP_RAM_Gold + ADP_RAM_PCB + ADP_RAM_T) -> 0.01570358301 | G19: kg Sb eq.
A20: GWP_RAM_Gold | B20: 0.4641824128 | C20: kg CO2 eq./ RAM-Riegel | E20: KEA_RAMs | F20: =$F$16 * ($F$17 / RAMproDie * KEA_RAM_DieSize + KEA_RAM_Gold + KEA_RAM_PCB + KEA_RAM_T) -> 1525.376864 | G20: MJ
A21: GWP_RAM_T | B21: 2.988538434 | C21: kg CO2 eq./ RAM-Riegel
A22: KEA_RAM_DieSize | B22: 27.34105 | C22: MJ / (cm² Die-Fläche / RAM-Riegel)
A23: KEA_RAM_PCB | B23: 20.68737938 | C23: MJ / RAM-Riegel
A24: KEA_RAM_Gold | B24: 7.182574298 | C24: MJ / RAM-Riegel
A25: KEA_RAM_T | B25: 46.14700761 | C25: MJ / RAM-Riegel | E25: Solid-State-Disks (SSD)
A26: ADP_NAND | B26: 6.30491e-05 | C26: kg Sb eq. / (cm² Die-Fläche / Stück SSD) | D26: GWP_SSDs = AnzahlSSD * (GByteSSD / NANDproDie * GWP_NAND + GWP_SSD_PCB + GWP_SSD_T) | E26: AnzahlSSD | F26: 1
A27: GWP_NAND | B27: 2.197556811 | C27: kg CO2 eq. /(cm² Die-Fläche / Stück SSD) | E27: GByteSSD | F27: 500
A28: KEA_NAND | B28: 27.34105 | C28: MJ / (cm² Die-Fläche / Stück SSD) | E28: GWP_SSDs | F28: =$F$26 * ($F$27 / NANDproDie * GWP_NAND + GWP_SSD_PCB + GWP_SSD_T) -> 28.39678868 | G28: kg CO2 eq.
A29: ADP_SSD_PCB | B29: 0.0005632242001 | C29: kg Sb eq. / Stück SSD | E29: ADP_SSDs | F29: =$F$26 * ($F$27 / NANDproDie * ADP_NAND + ADP_SSD_PCB + ADP_SSD_T) -> 0.001196297439 | G29: kg Sb eq.
A30: ADP_SSD_T | B30: 7.860306964e-08 | C30: kg Sb eq./ Stück SSD | E30: KEA_SSDs | F30: =$F$26 * ($F$27 / NANDproDie * KEA_NAND + KEA_SSD_PCB + KEA_SSD_T) -> 351.3384733 | G30: MJ
A31: GWP_SSD_PCB | B31: 5.706803182 | C31: kg CO2 eq./ Stück SSD
A32: GWP_SSD_T | B32: 0.6271539514 | C32: kg CO2 eq./ Stück SSD
A33: KEA_SSD_PCB | B33: 67.15818844 | C33: MJ / Stück SSD | E33: Hard-Disk-Drives (HDD)
A34: KEA_SSD_T | B34: 9.684091006 | C34: MJ / Stück SSD | E34: AnzahlHDD | F34: 1
A35: ADP_HDD | B35: 0.00025 | C35: kg Sb eq. / Stück HDD | D35: GWP_HDDs = AnzahlHDD * GWP_HDD | E35: GWP_HDDs | F35: =$F$34 * GWP_HDD -> 31.1082 | G35: kg CO2 eq.
A36: GWP_HDD | B36: 31.1082 | C36: kg CO2 eq. / Stück HDD | E36: ADP_HDDs | F36: =$F$34 * ADP_HDD -> 0.00025 | G36: kg Sb eq.
A37: KEA_HDD | B37: 275.52048 | C37: MJ / Stück HDD | E37: KEA_HDDs | F37: =$F$34 * KEA_HDD -> 275.52048 | G37: MJ
A38: ADP_MB | B38: 0.003687565891 | C38: kg Sb eq. / (Stück Motherboard / Stück Server) | D38: GWP_MB = GWP_MB
A39: GWP_MB | B39: 66.05426206 | C39: kg CO2 eq. / (Stück Motherboard / Stück Server)
A40: KEA_MB | B40: 835.6985766 | C40: MJ / (Stück Motherboard / Stück Server)
A41: ADP_RackRest | B41: 0.0202395 | C41: kg Sb eq. / (Stück Rackserver mit Restgewicht: 15,45kg) | D41: GWP_RackRest = GWP_RackRest
A42: GWP_RackRest | B42: 149.569905 | C42: kg CO2 eq. / (Stück Rackserver mit Restgewicht: 15,45kg)
A43: KEA_RackRest | B43: 2200.52944 | C43: MJ / (Stück Rackserver mit Restgewicht: 15,45kg)
A44: ADP_BladeSystemGeh | B44: 0.43185024 | C44: kg Sb eq. / (pro Bladesystem mit 16 Servern) | D44: Standard Blade Server Gehäuse hat 16 einzelne Einschübe --> jeder Bladeserver erhält 1/16 des Blade-Systems GWP_BladeSG = GWP_BladeSystemGeh / 16 | E44: GWP_BladeSG | F44: =GWP_BladeSystemGeh / 16 -> 54.97809879 | G44: kg CO2 eq.
A45: GWP_BladeSystemGeh | B45: 879.6495806 | C45: kg CO2 eq. / (pro Bladesystem mit 16 Servern) | E45: ADP_BladeSG | F45: =ADP_BladeSystemGeh / 16 -> 0.02699064 | G45: kg Sb eq.
A46: KEA_BladeSystemGeh | B46: 12671.49369 | C46: MJ / (pro Bladesystem mit 16 Servern) | E46: KEA_BladeSG | F46: =KEA_BladeSystemGeh / 16 -> 791.9683558 | G46: MJ
A47: ADP_BladeRest | B47: 0.000672 | C47: kg Sb eq. / (Stück Server mit Gehäuse: 4.2 kg) | D47: GWP_BladeRest = GWP_BladeRest
A48: GWP_BladeRest | B48: 30.870672 | C48: kg CO2 eq. / (Stück Server mit Gehäuse: 4.2 kg)
A49: KEA_BladeRest | B49: 435.350412 | C49: MJ / (Stück Server mit Gehäuse: 4.2 kg) | E49: Server
A50: ADP_AssemblyTest | B50: 1.4104545e-06 | C50: kg Sb eq./ Stück Server | D50: GWP_AssemblyTest = GWP_AssemblyTest | E50: AnzahlNetzteile | F50: 2
A51: GWP_AssemblyTest | B51: 6.67641 | C51: kg CO2 eq./ Stück Server | E51: AnzahlServer | F51: 1
A52: KEA_AssemblyTest | B52: 68.64037748 | C52: MJ/ Stück Server | E52: Blade-Server
A53: ADP_StorageRest | B53: 0.42535 | C53: kg Sb eq./ Stück Storage-System (32 HDD/SSD) | D53: Standard-Storage-System hat 2 Nodes mit jeweils 16 HHDs/SSDs --> jede HDD/SSD erhält 1/32 des Storage-Systems GWP_StorageRest = GWP_StorageRest / 32 * (AnzahlHDD + AnzahlSSD) | E53: GWP (Bladeserver) | F53: =$F$51 * (F5 + F18 +F28 +F35 + F11 + GWP_MB + GWP_BladeRest + F44 + GWP_AssemblyTest + $F$50 * GewichtPSU * GWP_PSU / 16) -> 352.9903368 | G53: kg CO2 eq.
A54: GWP_StorageRest | B54: 883.38248 | C54: kg CO2 eq./ Stück Storage-System (32 HDD/SSD) | E54: ADP (Bladeserver) | F54: =$F$51 * (F6 + F19 +F29 +F36 + F12 + ADP_MB + ADP_BladeRest + F45 + ADP_AssemblyTest + $F$50 * GewichtPSU * ADP_PSU / 16) -> 0.07102125424 | G54: kg Sb eq.
A55: KEA_StorageRest | B55: 12235.48183 | C55: MJ/ Stück Storage-System (32 HDD/SSD) | E55: KEA (Bladeserver) | F55: =$F$51 * (F7 + F20 +F30 +F37 + F13 + KEA_MB + KEA_BladeRest + F46 + KEA_AssemblyTest + $F$50 * GewichtPSU * KEA_PSU / 16) -> 4567.315108 | G55: MJ
A56: ADP_Switch | B56: 0.05351 | C56: kg Sb eq. / Stück Switch | D56: GWP = AnzahlNetzwerk * GWP_Switch | E56: Rack-Server
A57: GWP_Switch | B57: 245.8871 | C57: kg CO2 eq. / Stück Switch | E57: GWP (Rackserver) | F57: =$F$51 * (F5 + F18 +F28 +F35 + F11 + GWP_MB + GWP_RackRest + GWP_AssemblyTest + $F$50 * GewichtPSU * GWP_PSU) -> 507.8272836 | G57: kg CO2 eq.
A58: KEA_Switch | B58: 3328.03793 | C58: MJ / Stück Switch | E58: ADP (Rackserver) | F58: =$F$51 * (F6 + F19 +F29 +F36 + F12 + ADP_MB + ADP_RackRest + ADP_AssemblyTest + $F$50 * GewichtPSU * ADP_PSU) -> 0.09472311424 | G58: kg Sb eq.
A59: ADP_PSU | B59: 0.0083 | C59: kg Sb eq. / kg PSU | D59: 1) Pro Stück "Bladeserver": GWP_PSUs = AnzahlNetzteile * GewichtPSU * GWP_PSU / 16 --> Netzteile anteilig auf Server umgelegt 2) Pro Stück "Rackserver": GWP_PSUs = AnzahlNetzteile * GewichtPSU * GWP_PSU 3) Pro Stück Storage-System GWP_PSUs = AnzahlNetzteile * GewichtPSU * GWP_PSU / 32 * (AnzahlHDD + AnzahlSSD) | E59: KEA (Rackserver) | F59: =$F$51 * (F7 + F20 +F30 +F37 + F13 + KEA_MB + KEA_RackRest + KEA_AssemblyTest + $F$50 * GewichtPSU * KEA_PSU) -> 6859.038456 | G59: MJ
A60: GWP_PSU | B60: 24.29755 | C60: kg CO2 eq. / kg PSU
A61: KEA_PSU | B61: 351.60338 | C61: MJ / kg PSU | E61: Storage-System
A62: ADP_Strom | B62: 3.45861e-07 | C62: kg Sb eq. / kWh | D62: GWP_Strom = StrombedarfRZgesamt * GWP_Strom | E62: AnzahlNetzteile | F62: 2
A63: GWP_Strom | B63: 0.63527 | C63: kg CO2 eq. / kWh | E63: AnzahlSSD | F63: 16
A64: KEA_Strom | B64: 10.66965 | C64: MJ / kWh | E64: GByteSSD | F64: 500
A65: ADP_R134A | B65: 8.69958e-05 | C65: kg Sb eq. / kg | D65: Faktoren beziehen sich auf Herstellung und Nutzungsphase Abhängig von der Eingabe: 1) Kaeltemittelemissionen = KaeltemittelNachfuellmengeProJahr 2) Kaeltemittelemissionen = LeckagerateProJahr * KaeltemittelFuellmenge 3) Kaeltemittelemissionen = KMLeck_DV * KaeltemittelFuellmenge 4) Kaeltemittelemissionen = KMLeck_FK * KaeltemittelFuellmenge 5) Kaeltemittelemissionen = KMLeck_std * KaeltemittelFuellmenge GWP_KMges = Anzahl * Kaeltemittelemissionen * GWP_KM | E65: AnzahlHDD | F65: 16
A66: ADP_R290 | B66: 4.77125e-07 | C66: kg Sb eq. / kg | E66: GPW (Storage) | F66: =($F$65 * GWP_HDD + $F$63 * ($F$64 / NANDproDie * GWP_NAND + GWP_SSD_PCB + GWP_SSD_T) + $F$62 * GewichtPSU * GWP_PSU / 32 * ($F$65 + $F$63) + GWP_StorageRest) -> 1932.652499 | G66: kg CO2 eq.
A67: ADP_R32 | B67: 8.72863e-05 | C67: kg Sb eq. / kg | E67: ADP (Storage) | F67: =($F$65 * ADP_HDD + $F$63 * ($F$64 / NANDproDie * ADP_NAND + ADP_SSD_PCB + ADP_SSD_T) + $F$62 * GewichtPSU * ADP_PSU / 32 * ($F$65 + $F$63) + ADP_StorageRest) -> 0.481690759 | G67: kg Sb eq.
A68: ADP_R404A | B68: 9.95495e-05 | C68: kg Sb eq. / kg | E68: KEA (Storage) | F68: =($F$65 * KEA_HDD + $F$63 * ($F$64 / NANDproDie * KEA_NAND + KEA_SSD_PCB + KEA_SSD_T) + $F$62 * GewichtPSU * KEA_PSU / 32 * ($F$65 + $F$63) + KEA_StorageRest) -> 23671.6386 | G68: MJ
A69: ADP_R407A | B69: 9.92053e-05 | C69: kg Sb eq. / kg
A70: ADP_R407C | B70: 9.46572e-05 | C70: kg Sb eq. / kg | E70: Netzwerk-Systeme
A71: ADP_R410A | B71: 0.0001 | C71: kg Sb eq. / kg | E71: GWP_Switch | F71: =GWP_Switch -> 245.8871 | G71: kg CO2 eq.
A72: ADP_R717 | B72: 5.129e-06 | C72: kg Sb eq. / kg | E72: ADP_Switch | F72: =ADP_Switch -> 0.05351 | G72: kg Sb eq.
A73: ADP_R718 | B73: 1.13162e-09 | C73: kg Sb eq. / kg | E73: KEA_Switch | F73: =KEA_Switch -> 3328.03793 | G73: MJ
A74: ADP_R744 | B74: 4.92706e-06 | C74: kg Sb eq. / kg
A75: ADP_KMsonst | C75: kg Sb eq. / kg | D75: Bei Nutzung eines sonstigen KM selbst eintragen
A76: ADP_KMdefault | B76: 8.69958e-05 | C76: kg Sb eq. / kg | D76: Default = R134a
A77: GWP_R134A | B77: 1445.66123 | C77: kg CO2 eq. / kg
A78: GWP_R290 | B78: 3.82728 | C78: kg CO2 eq. / kg
A79: GWP_R32 | B79: 983.02836 | C79: kg CO2 eq. / kg
A80: GWP_R404A | B80: 3930.54832 | C80: kg CO2 eq. / kg
A81: GWP_R407A | B81: 2118.81252 | C81: kg CO2 eq. / kg
A82: GWP_R407C | B82: 1786.45434 | C82: kg CO2 eq. / kg
A83: GWP_R410A | B83: 2096.94213 | C83: kg CO2 eq. / kg
A84: GWP_R717 | B84: 2.03353 | C84: kg CO2 eq. / kg
A85: GWP_R718 | B85: 0.00036 | C85: kg CO2 eq. / kg
A86: GWP_R744 | B86: 1.77714 | C86: kg CO2 eq. / kg
A87: GWP_KMsonst | C87: kg CO2 eq. / kg | D87: Bei Nutzung eines sonstigen KM selbst eintragen
A88: GWP_KMdefault | B88: 1445.66123 | C88: kg CO2 eq. / kg | D88: Default = R134a
A89: KEA_R134A | B89: 120.31167 | C89: MJ / kg
A90: KEA_R290 | B90: 52.01464 | C90: MJ / kg
A91: KEA_R32 | B91: 103.28635 | C91: MJ / kg
A92: KEA_R404A | B92: 149.31241 | C92: MJ / kg
A93: KEA_R407A | B93: 139.59117 | C93: MJ / kg
A94: KEA_R407C | B94: 130.57369 | C94: MJ / kg
A95: KEA_R410A | B95: 140.1547 | C95: MJ / kg
A96: KEA_R717 | B96: 42.32254 | C96: MJ / kg
A97: KEA_R718 | B97: 0.007160347815 | C97: MJ / kg
A98: KEA_R744 | B98: 9.84281 | C98: MJ / kg
A99: KEA_KMsonst | C99: MJ / kg | D99: Bei Nutzung eines sonstigen KM selbst eintragen
A100: KEA_KMdefault | B100: 120.31167 | C100: MJ / kg | D100: Default = R134a
A101: KMLeck_DV | B101: 0.05 | C101: 100% | D101: Kaeltemittelemissionen = LeckagerateProJahr * KaeltemittelFuellmenge LeckagerateProJahr = KMLeck_DV LeckagerateProJahr = KMLeck_FK LeckagerateProJahr = KMLeck_std
A102: KMLeck_FK | B102: 0.03 | C102: 100%
A103: KMLeck_std | B103: 0.05 | C103: 100%
A104: KM_Art1 | B104: Direktverdampfer
A105: KM_Art2 | B105: Fluessigkeitskuehler
A106: KM_std
A107: ADP_Heizoel | B107: 5.612368446e-08 | C107: kg Sb eq./ kWh (Heizwert des Brennstoffs) | D107: 1) GWP_Brennstoffart = GWP_Heizoel ' Default, wenn kein BS angegeben 2) GWP_Brennstoffart = GWP_Erdgas 3) GWP_Brennstoffart = GWP_Fluessiggas 4) GWP_Brennstoffart = GWP_HolzPellets 5) GWP_Brennstoffart = GWP_HolzHackschnitzel 6) GWP_Brennstoffart = GWP_BS_sonst ' ADP, KEA und GWP müssen selbst eingetragen werden GWP_Brennstoff = Brennstoffbedarf * GWP_Brennstoffart
A108: ADP_Erdgas | B108: 1.732318199e-08 | C108: kg Sb eq./ kWh (Heizwert des Brennstoffs)
A109: ADP_Fluessiggas | B109: 3.215893833e-08 | C109: kg Sb eq./ kWh (Heizwert des Brennstoffs)
A110: ADP_HolzPellets | B110: 1.094459592e-07 | C110: kg Sb eq./ kWh (Heizwert des Brennstoffs)
A111: ADP_HolzHackschnitzel | B111: 1.877266006e-07 | C111: kg Sb eq./ kWh (Heizwert des Brennstoffs)
A112: ADP_BS_sonst | C112: kg Sb eq./ kWh (Heizwert des Brennstoffs)
A113: GWP_Heizoel | B113: 0.3131873249 | C113: kg CO2 eq./ kWh (Heizwert des Brennstoffs)
A114: GWP_Erdgas | B114: 0.2478407328 | C114: kg CO2 eq./ kWh (Heizwert des Brennstoffs)
A115: GWP_Fluessiggas | B115: 0.2830842513 | C115: kg CO2 eq./ kWh (Heizwert des Brennstoffs)
A116: GWP_HolzPellets | B116: 0.03412508784 | C116: kg CO2 eq./ kWh (Heizwert des Brennstoffs)
A117: GWP_HolzHackschnitzel | B117: 0.0431346167 | C117: kg CO2 eq./ kWh (Heizwert des Brennstoffs)
A118: GWP_BS_sonst | C118: kg CO2 eq./ kWh (Heizwert des Brennstoffs)
A119: KEA_Heizoel | B119: 4.810448388 | C119: MJ / kWh (Heizwert des Brennstoffs)
A120: KEA_Erdgas | B120: 4.792216398 | C120: MJ / kWh (Heizwert des Brennstoffs)
A121: KEA_Fluessiggas | B121: 4.518897736 | C121: MJ / kWh (Heizwert des Brennstoffs)
A122: KEA_HolzPellets | B122: 3.307575545 | C122: MJ / kWh (Heizwert des Brennstoffs)
A123: KEA_HolzHackschnitzel | B123: 3.235348081 | C123: MJ / kWh (Heizwert des Brennstoffs)
A124: KEA_BS_sonst | C124: MJ / kWh (Heizwert des Brennstoffs)
A125: BS_Art1 | B125: Heizoel
A126: BS_Art2 | B126: Erdgas
A127: BS_Art3 | B127: Fluessiggas
A128: BS_Art4 | B128: Holz-Pellets
A129: BS_Art5 | B129: Holz-Hackschnitzel
A130: BS_sonst | D130: Bei Nutzung eines sonstigen Brennstoffs BS_sonst selbst eintragen
A131: DieSizeFaktor | B131: 0.24584 | C131: cm²/Kern | D131: In Zelle 2-10 für "AnzahlKerneProCPU * DieSizeFaktor + DieSizeKonstante" DieSizeProCPU [cm²] = 0,24584 * AnzahlKerneProCPU + 0,49157
A132: DieSizeKonstante | B132: 0.49157 | C132: cm²
A133: RAMproDie | B133: 1.875 | C133: GByte/cm² | D133: in Zelle 14-25 verwendet
A134: NANDproDie | B134: 49.80223881 | C134: Gbyte/cm² | D134: in Zelle 26-34 verwendet
A135: GewichtRackRest | B135: 15.451 | C135: kg/Rack | D135: in Zelle 47-49 verwendet
A136: GewichtPSU | B136: 2 | C136: kg/PSU | D136: in Zelle 65-67 verwendet
A137: GewichtBladeSystemOhnePSU | B137: 94.704 | C137: kg/ (BladeSystemgehäuse für insg. 16 Servers) | D137: in Zelle 50-52 verwendet
A138: GewichtBladeRest | B138: 4.2 | C138: kg Bladeservergehäuse pro Server | D138: in Zelle 53-55 verwendet
A139: GewichtStorageRest | B139: 25 | C139: kg
A140: ND_default_server | B140: 3 | C140: a
A141: ND_default_storage | B141: 3 | C141: a
A142: ND_default_switch | B142: 3 | C142: a
A143: ND_default_kaelte | B143: 10 | C143: a
A144: Pel_Server_Default | B144: 400 | C144: W | D144: bessere Defaultwerte! 170 - 370 W pro CPU oder 40 - 100 W pro Kern
A145: Pel_Storage_Default | B145: 350 | C145: W | D145: bessere Defaultwerte! 10 - 20 W pro HDD/SSD
A146: Pel_Switch_Default | B146: 200 | C146: W | D146: bessere Defaultwerte! 0,5 - 2 W pro Port
A147: TageProJahr | B147: 365.25 | C147: d/a
A148: Server | D148: GWP = AnzahlServer * (GWP_CPUs + GWP_RAMs + GWP_SSDs + GWP_HDDs + GWP_KKs + GWP_MB + GWP_RackRest + GWP_BladeRest + GWP_BladeSG + GWP_AssemblyTest + GWP_PSUs)
A149: Speichersysteme | D149: GWP = AnzahlStorage * (GWP_HDDs + GWP_SSDs + GWP_PSUs + GWP_StorageRest)
A150: Netzwerk | D150: GWP = AnzahlNetzwerk * GWP_Switch
A151: Strom | D151: GWP_Strom = StrombedarfRZgesamt * GWP_Strom
A152: Brennstoff | D152: GWP_Brennstoff = Brennstoffbedarf * GWP_Brennstoffart
A153: Wasser für Kühlung | D153: GWP = Anzahl * WasserverbrauchProJahr
A154: Kältemittel | D154: GWP = Anzahl * Kaeltemittelemissionen * GWP_KM

Sheet 2h_VirtuelleServer
B2: Erfassung von Virtuellen Servern und zugeordneten Diensten oder Applikationen
B3: Monitoring der Nutzungsphase des Rechenzentrums
G4: Legende
B5: Allgemeine Angaben | G5: Ergänzende Angaben Cloud-Services
B6: Rechenzentrum: | C6: =IF('Allgemeine Angaben'!C6<>"",'Allgemeine Angaben'!C6,"") -> Testrechenzentrum | G6: Automatisch berechnete Werte (keine Eingabe)
B7: Bilanzdatum von: | C7: =IF('Allgemeine Angaben'!C23<>"",'Allgemeine Angaben'!C23,"") -> 2018-01-01
B8: Bilanzdatum bis: | C8: =IF('Allgemeine Angaben'!C24<>"",'Allgemeine Angaben'!C24,"") -> 2018-12-31
B11: Hinweis: Alle Angaben werden pro Virtuellem Server gemacht, auch wenn dieser mehrfach vorkommt
B12: i.d.R. = 1 | C12: Bezeichnung der Virtuellen Maschine | D12: wenn mehrere Sockel belegt sind, dann Produkt sockets*cores | H12: z.B. Mailserver, Lohnbuchhaltung, Webserver, Office-Anwendungen | I12: z.B. E-Mail-Postfach, Virtueller PC, Office-365-Nutzer, Mitarbeiter | R12: Pivot-Tabelle (mit Rechtsklick aktualisieren) | Y12: Prozentualer Anteil des Services an jeweiliger Ressource
B13: Anzahl indentisch genutzter VMs | C13: Eindeutige ID oder Komma-separierte ID-Liste | D13: Anzahl virtuelle CPU-Kerne (cores) pro VM | E13: Virtuelle RAM-Kapazität pro VM | F13: Virtueller Speicherplatz pro VM | G13: Bandbreite Virtuelle Netzwerkkarte (NIC) pro VM | H13: Bezeichnung Dienst/Applikation | I13: Beschreibung einzelne Service-Einheit | J13: Anzahl Serviceeinheiten pro VM | K13: Kommentar (Erläuterungen) | L13: Cores | M13: RAM | N13: Disk | O13: NIC | P13: Services | R13: Service | S13: CPU-Kerne | T13: Arbeitsspeicher | U13: Festplatte | V13: Netzwerk | W13: Dienste | Y13: CPU-Kerne | Z13: Arbeitsspeicher | AA13: Festplatte | AB13: Netzwerk | AC13: Dienste
B14: [Stck] | C14: [Text (,Text, Text, ...)] | D14: [Anzahl] | E14: [GByte] | F14: [GByte] | G14: [Mbit/s] | H14: [Text] | I14: [Text] | J14: [Stck] | K14: [Text] | L14: [Anzahl] | M14: [GByte] | N14: [GByte] | O14: [Mbit/s] | P14: [Stck] | R14: Desktop Virtualisierung | S14: 32 | T14: 34 | U14: 2500 | V14: 16000 | W14: 990 | Y14: =S14/GETPIVOTDATA("CPU-Kerne",$R$13) -> 0.5714285714 | Z14: =T14/GETPIVOTDATA("Arbeitsspeicher",$R$13) -> 0.34 | AA14: =U14/GETPIVOTDATA("Festplatte",$R$13) -> 0.3521126761 | AB14: =V14/GETPIVOTDATA("Netzwerk",$R$13) -> 0.4848484848 | AC14: =W14/GETPIVOTDATA("Dienste",$R$13) -> 0.4703087886
B15: Anzahl | C15: UniqueID | D15: AnzahlKerne | E15: GByteRAM | F15: GByteDisk | G15: MaximaleBandbreite | H15: ServiceBezeichnung | I15: ServiceEinheit | J15: ServiceAnzahl | K15: Kommentar | L15: Cores | M15: RAM | N15: Disk | O15: NIC | P15: Services | R15: Office 365 | S15: 11 | T15: 42 | U15: 2200 | V15: 11000 | W15: 1100 | Y15: =S15/GETPIVOTDATA("CPU-Kerne",$R$13) -> 0.1964285714 | Z15: =T15/GETPIVOTDATA("Arbeitsspeicher",$R$13) -> 0.42 | AA15: =U15/GETPIVOTDATA("Festplatte",$R$13) -> 0.3098591549 | AB15: =V15/GETPIVOTDATA("Netzwerk",$R$13) -> 0.3333333333 | AC15: =W15/GETPIVOTDATA("Dienste",$R$13) -> 0.5225653207
B16: 10 | C16: VM-113 | D16: 1 | E16: 4 | F16: 200 | G16: 1000 | H16: Office 365 | I16: Mitarbeiter | J16: 100 | L16: =VirtuelleServer[[#This Row],[Anzahl]]*VirtuelleServer[[#This Row],[AnzahlKerne]] -> 10 | M16: =VirtuelleServer[[#This Row],[Anzahl]]*VirtuelleServer[[#This Row],[GByteRAM]] -> 40 | N16: =VirtuelleServer[[#This Row],[Anzahl]]*VirtuelleServer[[#This Row],[GByteDisk]] -> 2000 | O16: =VirtuelleServer[[#This Row],[Anzahl]]*VirtuelleServer[[#This Row],[MaximaleBandbreite]] -> 10000 | P16: =VirtuelleServer[[#This Row],[Anzahl]]*VirtuelleServer[[#This Row],[ServiceAnzahl]] -> 1000 | R16: Simulation | S16: 8 | T16: 8 | U16: 400 | V16: 2000 | W16: 8 | Y16: 0.1428571429 | Z16: 0.08 | AA16: 0.05633802817 | AB16: 0.06060606061 | AC16: 0.003800475059
B17: 2 | C17: VM-114, VM-115 | D17: 4 | E17: 4 | F17: 200 | G17: 1000 | H17: Simulation | I17: Wettervorhersage | J17: 4 | L17: =VirtuelleServer[[#This Row],[Anzahl]]*VirtuelleServer[[#This Row],[AnzahlKerne]] -> 8 | M17: =VirtuelleServer[[#This Row],[Anzahl]]*VirtuelleServer[[#This Row],[GByteRAM]] -> 8 | N17: =VirtuelleServer[[#This Row],[Anzahl]]*VirtuelleServer[[#This Row],[GByteDisk]] -> 400 | O17: =VirtuelleServer[[#This Row],[Anzahl]]*VirtuelleServer[[#This Row],[MaximaleBandbreite]] -> 2000 | P17: =VirtuelleServer[[#This Row],[Anzahl]]*VirtuelleServer[[#This Row],[ServiceAnzahl]] -> 8 | R17: Webserver | S17: 5 | T17: 16 | U17: 2000 | V17: 4000 | W17: 7 | Y17: 0.08928571429 | Z17: 0.16 | AA17: 0.2816901408 | AB17: 0.1212121212 | AC17: 0.003325415677
B18: 3 | C18: VM-116, VM-117, VM-118 | D18: 1 | E18: 4 | F18: 500 | G18: 1000 | H18: Webserver | I18: Internetseite | J18: 2 | L18: =VirtuelleServer[[#This Row],[Anzahl]]*VirtuelleServer[[#This Row],[AnzahlKerne]] -> 3 | M18: =VirtuelleServer[[#This Row],[Anzahl]]*VirtuelleServer[[#This Row],[GByteRAM]] -> 12 | N18: =VirtuelleServer[[#This Row],[Anzahl]]*VirtuelleServer[[#This Row],[GByteDisk]] -> 1500 | O18: =VirtuelleServer[[#This Row],[Anzahl]]*VirtuelleServer[[#This Row],[MaximaleBandbreite]] -> 3000 | P18: =VirtuelleServer[[#This Row],[Anzahl]]*VirtuelleServer[[#This Row],[ServiceAnzahl]] -> 6 | R18: Gesamtergebnis | S18: 56 | T18: 100 | U18: 7100 | V18: 33000 | W18: 2105 | Y18: 1 | Z18: 1 | AA18: 1 | AB18: 1 | AC18: 1
B19: 1 | C19: VM-119 | D19: 2 | E19: 4 | F19: 500 | G19: 1000 | H19: Webserver | I19: Internetseite | J19: 1 | L19: =VirtuelleServer[[#This Row],[Anzahl]]*VirtuelleServer[[#This Row],[AnzahlKerne]] -> 2 | M19: =VirtuelleServer[[#This Row],[Anzahl]]*VirtuelleServer[[#This Row],[GByteRAM]] -> 4 | N19: =VirtuelleServer[[#This Row],[Anzahl]]*VirtuelleServer[[#This Row],[GByteDisk]] -> 500 | O19: =VirtuelleServer[[#This Row],[Anzahl]]*VirtuelleServer[[#This Row],[MaximaleBandbreite]] -> 1000 | P19: =VirtuelleServer[[#This Row],[Anzahl]]*VirtuelleServer[[#This Row],[ServiceAnzahl]] -> 1 | Y19: 0 | Z19: 0 | AA19: 0 | AB19: 0 | AC19: 0
B20: 1 | C20: VM-120 | D20: 2 | E20: 4 | F20: 1000 | G20: 1000 | H20: Desktop Virtualisierung | I20: Mitarbeiter | J20: 200 | L20: =VirtuelleServer[[#This Row],[Anzahl]]*VirtuelleServer[[#This Row],[AnzahlKerne]] -> 2 | M20: =VirtuelleServer[[#This Row],[Anzahl]]*VirtuelleServer[[#This Row],[GByteRAM]] -> 4 | N20: =VirtuelleServer[[#This Row],[Anzahl]]*VirtuelleServer[[#This Row],[GByteDisk]] -> 1000 | O20: =VirtuelleServer[[#This Row],[Anzahl]]*VirtuelleServer[[#This Row],[MaximaleBandbreite]] -> 1000 | P20: =VirtuelleServer[[#This Row],[Anzahl]]*VirtuelleServer[[#This Row],[ServiceAnzahl]] -> 200 | Y20: 0 | Z20: 0 | AA20: 0 | AB20: 0 | AC20: 0
B21: 1 | C21: VM-121 | D21: 1 | E21: 2 | F21: 200 | G21: 1000 | H21: Office 365 | I21: Mitarbeiter | J21: 100 | L21: =VirtuelleServer[[#This Row],[Anzahl]]*VirtuelleServer[[#This Row],[AnzahlKerne]] -> 1 | M21: =VirtuelleServer[[#This Row],[Anzahl]]*VirtuelleServer[[#This Row],[GByteRAM]] -> 2 | N21: =VirtuelleServer[[#This Row],[Anzahl]]*VirtuelleServer[[#This Row],[GByteDisk]] -> 200 | O21: =VirtuelleServer[[#This Row],[Anzahl]]*VirtuelleServer[[#This Row],[MaximaleBandbreite]] -> 1000 | P21: =VirtuelleServer[[#This Row],[Anzahl]]*VirtuelleServer[[#This Row],[ServiceAnzahl]] -> 100 | Y21: 0 | Z21: 0 | AA21: 0 | AB21: 0 | AC21: 0
B22: 1 | C22: VM-122 | D22: 2 | E22: 2 | F22: 100 | G22: 1000 | H22: Desktop Virtualisierung | I22: Mitarbeiter | J22: 50 | L22: =VirtuelleServer[[#This Row],[Anzahl]]*VirtuelleServer[[#This Row],[AnzahlKerne]] -> 2 | M22: =VirtuelleServer[[#This Row],[Anzahl]]*VirtuelleServer[[#This Row],[GByteRAM]] -> 2 | N22: =VirtuelleServer[[#This Row],[Anzahl]]*VirtuelleServer[[#This Row],[GByteDisk]] -> 100 | O22: =VirtuelleServer[[#This Row],[Anzahl]]*VirtuelleServer[[#This Row],[MaximaleBandbreite]] -> 1000 | P22: =VirtuelleServer[[#This Row],[Anzahl]]*VirtuelleServer[[#This Row],[ServiceAnzahl]] -> 50 | Y22: 0 | Z22: 0 | AA22: 0 | AB22: 0 | AC22: 0
B23: 2 | C23: VM-123 | D23: 2 | E23: 2 | F23: 100 | G23: 1000 | H23: Desktop Virtualisierung | I23: Mitarbeiter | J23: 51 | L23: =VirtuelleServer[[#This Row],[Anzahl]]*VirtuelleServer[[#This Row],[AnzahlKerne]] -> 4 | M23: =VirtuelleServer[[#This Row],[Anzahl]]*VirtuelleServer[[#This Row],[GByteRAM]] -> 4 | N23: =VirtuelleServer[[#This Row],[Anzahl]]*VirtuelleServer[[#This Row],[GByteDisk]] -> 200 | O23: =VirtuelleServer[[#This Row],[Anzahl]]*VirtuelleServer[[#This Row],[MaximaleBandbreite]] -> 2000 | P23: =VirtuelleServer[[#This Row],[Anzahl]]*VirtuelleServer[[#This Row],[ServiceAnzahl]] -> 102 | Y23: 0 | Z23: 0 | AA23: 0 | AB23: 0 | AC23: 0
B24: 3 | C24: VM-124 | D24: 2 | E24: 2 | F24: 100 | G24: 1000 | H24: Desktop Virtualisierung | I24: Mitarbeiter | J24: 52 | L24: =VirtuelleServer[[#This Row],[Anzahl]]*VirtuelleServer[[#This Row],[AnzahlKerne]] -> 6 | M24: =VirtuelleServer[[#This Row],[Anzahl]]*VirtuelleServer[[#This Row],[GByteRAM]] -> 6 | N24: =VirtuelleServer[[#This Row],[Anzahl]]*VirtuelleServer[[#This Row],[GByteDisk]] -> 300 | O24: =VirtuelleServer[[#This Row],[Anzahl]]*VirtuelleServer[[#This Row],[MaximaleBandbreite]] -> 3000 | P24: =VirtuelleServer[[#This Row],[Anzahl]]*VirtuelleServer[[#This Row],[ServiceAnzahl]] -> 156 | Y24: 0 | Z24: 0 | AA24: 0 | AB24: 0 | AC24: 0
B25: 4 | C25: VM-125 | D25: 2 | E25: 2 | F25: 100 | G25: 1000 | H25: Desktop Virtualisierung | I25: Mitarbeiter | J25: 53 | L25: =VirtuelleServer[[#This Row],[Anzahl]]*VirtuelleServer[[#This Row],[AnzahlKerne]] -> 8 | M25: =VirtuelleServer[[#This Row],[Anzahl]]*VirtuelleServer[[#This Row],[GByteRAM]] -> 8 | N25: =VirtuelleServer[[#This Row],[Anzahl]]*VirtuelleServer[[#This Row],[GByteDisk]] -> 400 | O25: =VirtuelleServer[[#This Row],[Anzahl]]*VirtuelleServer[[#This Row],[MaximaleBandbreite]] -> 4000 | P25: =VirtuelleServer[[#This Row],[Anzahl]]*VirtuelleServer[[#This Row],[ServiceAnzahl]] -> 212 | Y25: 0 | Z25: 0 | AA25: 0 | AB25: 0 | AC25: 0
B26: 5 | C26: VM-126 | D26: 2 | E26: 2 | F26: 100 | G26: 1000 | H26: Desktop Virtualisierung | I26: Mitarbeiter | J26: 54 | L26: =VirtuelleServer[[#This Row],[Anzahl]]*VirtuelleServer[[#This Row],[AnzahlKerne]] -> 10 | M26: =VirtuelleServer[[#This Row],[Anzahl]]*VirtuelleServer[[#This Row],[GByteRAM]] -> 10 | N26: =VirtuelleServer[[#This Row],[Anzahl]]*VirtuelleServer[[#This Row],[GByteDisk]] -> 500 | O26: =VirtuelleServer[[#This Row],[Anzahl]]*VirtuelleServer[[#This Row],[MaximaleBandbreite]] -> 5000 | P26: =VirtuelleServer[[#This Row],[Anzahl]]*VirtuelleServer[[#This Row],[ServiceAnzahl]] -> 270 | Y26: 0 | Z26: 0 | AA26: 0 | AB26: 0 | AC26: 0
Y27: 0 | Z27: 0 | AA27: 0 | AB27: 0 | AC27: 0

Sheet 2i_Services
B2: Monitoring Services - Anlage 2i zur KPI4DCE-Berechnung
B5: Allgemeine Angaben | H5: Obligatorische Angaben Antragstellung Blauer Engel
B6: Rechenzentrum: | C6: =IF('Allgemeine Angaben'!C6<>"",'Allgemeine Angaben'!C6,"") -> Testrechenzentrum | H6: Ergänzende Angaben KPI4DCE
B7: Bilanzdatum von: | C7: =IF('Allgemeine Angaben'!C23<>"",'Allgemeine Angaben'!C23,"") -> 2018-01-01 | H7: * Angaben für Aufwand Nutzungsphase
B8: Bilanzdatum bis: | C8: =IF('Allgemeine Angaben'!C24<>"",'Allgemeine Angaben'!C24,"") -> 2018-12-31 | H8: ** Angaben für Zuordnung (Allokation)
H9: *** Angaben für Nutzen
H10: Automatisch berechnete Werte (keine Eingabe)
B13: Beginn Monitoring-zeitraum | C13: Ende Monitoring-zeitraum | D13: Service-Bezeichnung | E13: Anzahl Service Einheiten (SU) | F13: Einheit Service Einheit | G13: Anteil an Server | H13: Anteil an Storage | I13: Anteil an Netzwerk | J13: Anteil an Infrastruktur | K13: Anteil Monitoring- zeitraum im Berichtszeitraum
B14: [TT.MM.JJJ] | C14: [TT.MM.JJJ] | D14: [Text] | E14: [Stck] | F14: [Text] | G14: {0...1} | H14: {0...1} | I14: {0...1} | J14: {0...1} | K14: [-]
B15: MonitoringStart | C15: MonitoringEnde | D15: ServiceBezeichnung | E15: AnzahlServiceEinheiten | F15: Unit | G15: AnteilAnServer | H15: AnteilAnStorage | I15: AnteilAnNetzwerk | J15: AnteilAnInfrastruktur | K15: RatioMZzuBZ
B16: 2018-01-01 | C16: 2018-12-31 | D16: Virtuelle Server | E16: 1000 | F16: Stück | G16: 0.8 | H16: 0.8 | I16: 0.9 | J16: 0.8 | K16: =KorrFaktBZ(Report_start*1,Report_end*1,Services[[#This Row],[MonitoringStart]]*1,Services[[#This Row],[MonitoringEnde]]*1) -> 1
B17: 2018-01-01 | C17: 2018-12-31 | D17: Lohnabrechnung | E17: 100000 | F17: Konten | G17: 0.2 | H17: 0.2 | I17: 0.1 | J17: 0.2 | K17: =KorrFaktBZ(Report_start*1,Report_end*1,Services[[#This Row],[MonitoringStart]]*1,Services[[#This Row],[MonitoringEnde]]*1) -> 1
K18: =KorrFaktBZ(Report_start*1,Report_end*1,Services[[#This Row],[MonitoringStart]]*1,Services[[#This Row],[MonitoringEnde]]*1) -> 0
K19: =KorrFaktBZ(Report_start*1,Report_end*1,Services[[#This Row],[MonitoringStart]]*1,Services[[#This Row],[MonitoringEnde]]*1) -> 0
K20: =KorrFaktBZ(Report_start*1,Report_end*1,Services[[#This Row],[MonitoringStart]]*1,Services[[#This Row],[MonitoringEnde]]*1) -> 0
K21: =KorrFaktBZ(Report_start*1,Report_end*1,Services[[#This Row],[MonitoringStart]]*1,Services[[#This Row],[MonitoringEnde]]*1) -> 0
K22: =KorrFaktBZ(Report_start*1,Report_end*1,Services[[#This Row],[MonitoringStart]]*1,Services[[#This Row],[MonitoringEnde]]*1) -> 0
K23: =KorrFaktBZ(Report_start*1,Report_end*1,Services[[#This Row],[MonitoringStart]]*1,Services[[#This Row],[MonitoringEnde]]*1) -> 0
K24: =KorrFaktBZ(Report_start*1,Report_end*1,Services[[#This Row],[MonitoringStart]]*1,Services[[#This Row],[MonitoringEnde]]*1) -> 0
K25: =KorrFaktBZ(Report_start*1,Report_end*1,Services[[#This Row],[MonitoringStart]]*1,Services[[#This Row],[MonitoringEnde]]*1) -> 0
K26: =KorrFaktBZ(Report_start*1,Report_end*1,Services[[#This Row],[MonitoringStart]]*1,Services[[#This Row],[MonitoringEnde]]*1) -> 0
K27: =KorrFaktBZ(Report_start*1,Report_end*1,Services[[#This Row],[MonitoringStart]]*1,Services[[#This Row],[MonitoringEnde]]*1) -> 0
K28: =KorrFaktBZ(Report_start*1,Report_end*1,Services[[#This Row],[MonitoringStart]]*1,Services[[#This Row],[MonitoringEnde]]*1) -> 0

Sheet Übersicht Datenbedarf
A1: parent | B1: name | C1: type
A2: Serverdaten | B2: AnzahlServer | C2: xs:integer
A3: Serverdaten | B3: UniqueID | C3: xs:string
A4: Serverdaten | B4: DatumInbetriebnahme | C4: xs:dateTime
A5: Serverdaten | B5: DatumAusserbetriebnahme | C5: xs:dateTime
A6: Serverdaten | B6: Herstellername | C6: xs:string
A7: Serverdaten | B7: Modellname | C7: xs:string
A8: Serverdaten | B8: Nennleistung | C8: xs:decimal
A9: Serverdaten | B9: NetzeilEnergieStandard | C9: xs:string
A10: Serverdaten | B10: ServerBenchmarkBezeichnung | C10: xs:string
A11: Serverdaten | B11: ServerBenchmarkWert | C11: xs:decimal
A12: Serverdaten | B12: BegruendungAusnahme | C12: xs:string
A13: Serverdaten | B13: GeplanteNutzungsdauer | C13: xs:integer
A14: Serverdaten | B14: ServertypRack_Blade | C14: xs:string
A15: Serverdaten | B15: AnteilAmBladeSystem | C15: xs:decimal
A16: Serverdaten | B16: AnschaffungskostenProStueck | C16: xs:decimal
A17: Serverdaten | B17: WaehrungAnschaffungskosten | C17: xs:string
A18: Serverdaten | B18: AnzahlCPU | C18: xs:integer
A19: Serverdaten | B19: AnzahlKerneProCPU | C19: xs:integer
A20: Serverdaten | B20: GByteRAM | C20: xs:integer
A21: Serverdaten | B21: AnzahlRAMModule | C21: xs:integer
A22: Serverdaten | B22: AnzahlHDD | C22: xs:integer
A23: Serverdaten | B23: AnzahlSSD | C23: xs:integer
A24: Serverdaten | B24: GByteSSD | C24: xs:integer
A25: Serverdaten | B25: AnzahlNetzteile | C25: xs:integer
A26: Serverdaten | B26: Gewicht | C26: xs:decimal
A27: Serverdaten | B27: MittlereCPUAuslastung | C27: xs:decimal
A28: Serverdaten | B28: MittlereLeistungsaufnahme | C28: xs:decimal
A29: Serverdaten | B29: EnergiebedarfProJahr | C29: xs:decimal
A30: Storagedaten | B30: AnzahlStorage | C30: xs:integer
A31: Storagedaten | B31: UniqueID | C31: xs:string
A32: Storagedaten | B32: DatumInbetriebnahme | C32: xs:dateTime
A33: Storagedaten | B33: DatumAusserbetriebnahme | C33: xs:dateTime
A34: Storagedaten | B34: Herstellername | C34: xs:string
A35: Storagedaten | B35: Modellname | C35: xs:string
A36: Storagedaten | B36: Nennleistung | C36: xs:decimal
A37: Storagedaten | B37: SpeicherkapazitaetGByte | C37: xs:decimal
A38: Storagedaten | B38: AnzahlHDD | C38: xs:integer
A39: Storagedaten | B39: AnzahlSSD | C39: xs:integer
A40: Storagedaten | B40: GeplanteNutzungsdauer | C40: xs:decimal
A41: Storagedaten | B41: AnschaffungskostenProStueck | C41: xs:decimal
A42: Storagedaten | B42: WaehrungAnschaffungskosten | C42: xs:string
A43: Storagedaten | B43: GByteSSD | C43: xs:decimal
A44: Storagedaten | B44: AnzahlNetzteile | C44: xs:decimal
A45: Storagedaten | B45: Gewicht | C45: xs:decimal
A46: Storagedaten | B46: MittlereBelegungSpeicherplatz | C46: xs:decimal
A47: Storagedaten | B47: MittlereAnzahlSpeicherzugriffeProSekundeIOPS | C47: xs:decimal
A48: Storagedaten | B48: MittlereDatenmengeLesenSchreibenProSekunde | C48: xs:decimal
A49: Storagedaten | B49: MittlereLeistungsaufnahme | C49: xs:decimal
A50: Storagedaten | B50: EnergiebedarfProJahr | C50: xs:decimal
A51: Netzwerkdaten | B51: AnzahlNetzwerk | C51: xs:integer
A52: Netzwerkdaten | B52: UniqueID | C52: xs:string
A53: Netzwerkdaten | B53: DatumInbetriebnahme | C53: xs:dateTime
A54: Netzwerkdaten | B54: DatumAusserbetriebnahme | C54: xs:dateTime
A55: Netzwerkdaten | B55: Herstellername | C55: xs:string
A56: Netzwerkdaten | B56: Modellname | C56: xs:string
A57: Netzwerkdaten | B57: Nennleistung | C57: xs:decimal
A58: Netzwerkdaten | B58: GeplanteNutzungsdauer | C58: xs:decimal
A59: Netzwerkdaten | B59: AnschaffungskostenProStueck | C59: xs:decimal
A60: Netzwerkdaten | B60: WaehrungAnschaffungskosten | C60: xs:string
A61: Netzwerkdaten | B61: AnzahlPorts | C61: xs:integer
A62: Netzwerkdaten | B62: MaximaleBandbreiteProPort | C62: xs:decimal
A63: Netzwerkdaten | B63: Netzwerkebene | C63: xs:string
A64: Netzwerkdaten | B64: AnzahlNetzteile | C64: xs:integer
A65: Netzwerkdaten | B65: Gewicht | C65: xs:decimal
A66: Netzwerkdaten | B66: MittlereGenutzteBandbreiteInternerDatenverkehr | C66: xs:decimal
A67: Netzwerkdaten | B67: MittlereGenutzteBandbreiteExternerDatenverkehr | C67: xs:decimal
A68: Netzwerkdaten | B68: MittlereLeistungsaufnahme | C68: xs:decimal
A69: Netzwerkdaten | B69: EnergiebedarfProJahr | C69: xs:decimal
A70: Stromverteilungsdaten | B70: AnzahlPDU | C70: xs:integer
A71: Stromverteilungsdaten | B71: UniqueID | C71: xs:string
A72: Stromverteilungsdaten | B72: DatumInbetriebnahme | C72: xs:dateTime
A73: Stromverteilungsdaten | B73: DatumAusserbetriebnahme | C73: xs:dateTime
A74: Stromverteilungsdaten | B74: Herstellername | C74: xs:string
A75: Stromverteilungsdaten | B75: Modellname | C75: xs:string
A76: Stromverteilungsdaten | B76: AnzahlStromausgaenge | C76: xs:integer
A77: Stromverteilungsdaten | B77: VerlustleistungGesamt | C77: xs:decimal
A78: Kaelteanlagendaten | B78: AnzahlKaelte | C78: xs:integer
A79: Kaelteanlagendaten | B79: UniqueID | C79: xs:string
A80: Kaelteanlagendaten | B80: DatumInbetriebnahme | C80: xs:dateTime
A81: Kaelteanlagendaten | B81: DatumAusserbetriebnahme | C81: xs:dateTime
A82: Kaelteanlagendaten | B82: Herstellername | C82: xs:string
A83: Kaelteanlagendaten | B83: Modellname | C83: xs:string
A84: Kaelteanlagendaten | B84: NennleistungElektrisch | C84: xs:decimal
A85: Kaelteanlagendaten | B85: NennleistungKaelte | C85: xs:decimal
A86: Kaelteanlagendaten | B86: AnschaffungskostenProStueck | C86: xs:decimal
A87: Kaelteanlagendaten | B87: WaehrungAnschaffungskosten | C87: xs:string
A88: Kaelteanlagendaten | B88: KaeltemittelArt | C88: xs:string
A89: Kaelteanlagendaten | B89: KaeltemittelFuellmenge | C89: xs:decimal
A90: Kaelteanlagendaten | B90: Verdampfungsart | C90: xs:string
A91: Kaelteanlagendaten | B91: LeckagerateProJahr | C91: xs:decimal
A92: Kaelteanlagendaten | B92: KaeltemittelNachfuellmengeProJahr | C92: xs:decimal
A93: Kaelteanlagendaten | B93: WasserverbrauchProJahr | C93: xs:decimal
A94: Kaelteanlagendaten | B94: Wasserqualitaet | C94: xs:string
A95: Kaelteanlagendaten | B95: EnergiebedarfProJahr | C95: xs:decimal
A96: MonitoringEnergie | B96: MonitoringStart | C96: xs:dateTime
A97: MonitoringEnergie | B97: MonitoringEnde | C97: xs:dateTime
A98: MonitoringEnergie | B98: StrombedarfRZgesamt | C98: xs:decimal
A99: MonitoringEnergie | B99: SpitzenlastRZgesamt | C99: xs:decimal
A100: MonitoringEnergie | B100: StrombedarfServer | C100: xs:decimal
A101: MonitoringEnergie | B101: SpitzenlastServer | C101: xs:decimal
A102: MonitoringEnergie | B102: StrombedarfStorage | C102: xs:decimal
A103: MonitoringEnergie | B103: SpitzenlastStorage | C103: xs:decimal
A104: MonitoringEnergie | B104: StrombedarfNetzwerk | C104: xs:decimal
A105: MonitoringEnergie | B105: SpitzenlastNetzwerk | C105: xs:decimal
A106: MonitoringEnergie | B106: StrombedarfIT | C106: xs:decimal
A107: MonitoringEnergie | B107: SpitzenlastIT | C107: xs:decimal
A108: MonitoringEnergie | B108: StrombedarfKS | C108: xs:decimal
A109: MonitoringEnergie | B109: SpitzenlastKSel | C109: xs:decimal
A110: MonitoringEnergie | B110: KaeltearbeitKSth | C110: xs:decimal
A111: MonitoringEnergie | B111: KuehllastKSth | C111: xs:decimal
A112: MonitoringEnergie | B112: StrombedarfVerlusteUSV | C112: xs:decimal
A113: MonitoringEnergie | B113: SpitzenlastUSV | C113: xs:decimal
A114: MonitoringEnergie | B114: StrombedarfVerlustePDU | C114: xs:decimal
A115: MonitoringEnergie | B115: StrombedarfSonstiges | C115: xs:decimal
A116: MonitoringEnergie | B116: Brennstoffbedarf | C116: xs:decimal
A117: MonitoringEnergie | B117: Brennstoffart | C117: xs:string
A118: MonitoringEnergie | B118: PUE | C118: xs:decimal
A119: MonitoringEnergie | B119: JAZ | C119: xs:decimal
A120: MonitoringPerformance | B120: MonitoringStart | C120: xs:dateTime
A121: MonitoringPerformance | B121: MonitoringEnde | C121: xs:dateTime
A122: MonitoringPerformance | B122: MittelwertITEUsv | C122: xs:decimal
A123: MonitoringPerformance | B123: MittlereAuslastungStorage | C123: xs:decimal
A124: MonitoringPerformance | B124: ExterneDatenuebertragung | C124: xs:decimal
A125: VirtuelleServerdaten | B125: Anzahl | C125: xs:integer
A126: VirtuelleServerdaten | B126: UniqueID | C126: xs:string
A127: VirtuelleServerdaten | B127: AnzahlKerne | C127: xs:integer
A128: VirtuelleServerdaten | B128: GByteRAM | C128: xs:integer
A129: VirtuelleServerdaten | B129: GByteDisk | C129: xs:integer
A130: VirtuelleServerdaten | B130: MaximaleBandbreite | C130: xs:decimal
A131: VirtuelleServerdaten | B131: ServiceBezeichnung | C131: xs:string
A132: VirtuelleServerdaten | B132: ServiceEinheit | C132: xs:string
A133: VirtuelleServerdaten | B133: ServiceAnzahl | C133: xs:integer
A134: VirtuelleServerdaten | B134: Kommentar | C134: xs:string
